Workbook

Sheet Lookup (hidden)
A1: FACTOR NO. 1 - HIP ELIGIBILITY/SELECTION CRITERIA @ 150%
A2: INCOME GUIDELINE POINT SCHEDULE FOR ALL STATES EXCEPT ALASKA
C3: 25 | F3: 20 | I3: 15 | L3: 10 | O3: 5 | R3: 0 | U3: Ineligible | AJ3: Income | AK3: Family Size | AL3: Answer
A4: 1 | B4: 0 | C4: TO | D4: =D17 -> 3645 | E4: =D4+1 -> 3646 | F4: TO | G4: =G17 -> 7290 | H4: =G4+1 -> 7291 | I4: TO | J4: =J17 -> 10935 | K4: =J4+1 -> 10936 | L4: TO | M4: =M17 -> 14580 | N4: =M4+1 -> 14581 | O4: TO | P4: =P17 -> 18225 | Q4: =P4+1 -> 18226 | R4: TO | S4: =S17 -> 21870 | T4: =S4+1 -> 21871 | U4: & HIGHER | X4: 1 | Y4: =B4 -> 0 | Z4: =E4 -> 3646 | AA4: =H4 -> 7291 | AB4: =K4 -> 10936 | AC4: =N4 -> 14581 | AD4: =Q4 -> 18226 | AE4: =T4 -> 21871 | AF4: =HLOOKUP($AJ5,Y4:AE5,2) -> 25 | AG4: hlookup if in this row
A5: 2 | B5: 0 | C5: TO | D5: =(D4+D$16) -> 4930 | E5: 4931 | F5: TO | G5: =G4+G$16 -> 9860 | H5: 9861 | I5: TO | J5: =J4+J$16 -> 14790 | K5: 14791 | L5: TO | M5: =M4+M$16 -> 19720 | N5: 19721 | O5: TO | P5: =P4+P$16 -> 24650 | Q5: 24651 | R5: TO | S5: =S4+S$16 -> 29580 | T5: 29581 | U5: & HIGHER | W5: 1 | Y5: 25 | Z5: 20 | AA5: 15 | AB5: 10 | AC5: 5 | AD5: 0 | AE5: Not Eligible | AF5: Not Eligible | AJ5: =Form!G12 -> 0 | AK5: =Form!E12 -> 0 | AL5: =VLOOKUP(AK5,Income_2,9) -> 
A6: 3 | B6: 0 | C6: TO | D6: =D5+D$16 -> 6215 | E6: 6216 | F6: TO | G6: 12430 | H6: 12431 | I6: TO | J6: 18645 | K6: 18646 | L6: TO | M6: 24860 | N6: 24861 | O6: TO | P6: 31075 | Q6: 31076 | R6: TO | S6: 37290 | T6: 37291 | U6: & HIGHER | X6: 2 | Y6: =B5 -> 0 | Z6: =E5 -> 4931 | AA6: =H5 -> 9861 | AB6: =K5 -> 14791 | AC6: =N5 -> 19721 | AD6: =Q5 -> 24651 | AE6: =T5 -> 29581 | AF6: =HLOOKUP($AJ5,Y6:AE7,2) -> 25 | AG6: hlookup if in this row
A7: 4 | B7: 0 | C7: TO | D7: 7500 | E7: 7501 | F7: TO | G7: 15000 | H7: 15001 | I7: TO | J7: 22500 | K7: 22501 | L7: TO | M7: 30000 | N7: 30001 | O7: TO | P7: 37500 | Q7: 37501 | R7: TO | S7: 45000 | T7: 45001 | U7: & HIGHER | Y7: 25 | Z7: 20 | AA7: 15 | AB7: 10 | AC7: 5 | AD7: 0 | AE7: Not Eligible
A8: 5 | B8: 0 | C8: TO | D8: 8785 | E8: 8786 | F8: TO | G8: 17570 | H8: 17571 | I8: TO | J8: 26355 | K8: 26356 | L8: TO | M8: 35140 | N8: 35141 | O8: TO | P8: 43925 | Q8: 43926 | R8: TO | S8: 52710 | T8: 52711 | U8: & HIGHER | X8: 3 | Y8: =B6 -> 0 | Z8: =E6 -> 6216 | AA8: =H6 -> 12431 | AB8: =K6 -> 18646 | AC8: =N6 -> 24861 | AD8: =Q6 -> 31076 | AE8: =T6 -> 37291 | AF8: =HLOOKUP($AJ5,Y8:AE9,2) -> 25 | AG8: hlookup if in this row
A9: 6 | B9: 0 | C9: TO | D9: 10070 | E9: 10071 | F9: TO | G9: 20140 | H9: 20141 | I9: TO | J9: 30210 | K9: 30211 | L9: TO | M9: 40280 | N9: 40281 | O9: TO | P9: 50350 | Q9: 50351 | R9: TO | S9: 60420 | T9: 60421 | U9: & HIGHER | Y9: 25 | Z9: 20 | AA9: 15 | AB9: 10 | AC9: 5 | AD9: 0 | AE9: Not Eligible
A10: 7 | B10: 0 | C10: TO | D10: 11355 | E10: 11356 | F10: TO | G10: 22710 | H10: 22711 | I10: TO | J10: 34065 | K10: 34066 | L10: TO | M10: 45420 | N10: 45421 | O10: TO | P10: 56775 | Q10: 56776 | R10: TO | S10: 68130 | T10: 68131 | U10: & HIGHER | X10: 4 | Y10: =B7 -> 0 | Z10: =E7 -> 7501 | AA10: =H7 -> 15001 | AB10: =K7 -> 22501 | AC10: =N7 -> 30001 | AD10: =Q7 -> 37501 | AE10: =T7 -> 45001 | AF10: =HLOOKUP($AJ5,Y10:AE11,2) -> 25 | AG10: hlookup if in this row
A11: 8 | B11: 0 | C11: TO | D11: 12640 | E11: 12641 | F11: TO | G11: 25280 | H11: 25281 | I11: TO | J11: 37920 | K11: 37921 | L11: TO | M11: 50560 | N11: 50561 | O11: TO | P11: 63200 | Q11: 63201 | R11: TO | S11: 75840 | T11: 75841 | U11: & HIGHER | Y11: 25 | Z11: 20 | AA11: 15 | AB11: 10 | AC11: 5 | AD11: 0 | AE11: Not Eligible
A12: 9 | B12: 0 | C12: TO | D12: 13925 | E12: 13926 | F12: TO | G12: 27850 | H12: 27851 | I12: TO | J12: 41775 | K12: 41776 | L12: TO | M12: 55700 | N12: 55701 | O12: TO | P12: 69625 | Q12: 69626 | R12: TO | S12: 83550 | T12: 83551 | U12: & HIGHER | X12: 5 | Y12: =B8 -> 0 | Z12: =E8 -> 8786 | AA12: =H8 -> 17571 | AB12: =K8 -> 26356 | AC12: =N8 -> 35141 | AD12: =Q8 -> 43926 | AE12: =T8 -> 52711 | AF12: =HLOOKUP($AJ5,Y12:AE13,2) -> 25 | AG12: hlookup if in this row
A13: 10 | B13: 0 | C13: TO | D13: 15210 | E13: 15211 | F13: TO | G13: 30420 | H13: 30421 | I13: TO | J13: 45630 | K13: 45631 | L13: TO | M13: 60840 | N13: 60841 | O13: TO | P13: 76050 | Q13: 76051 | R13: TO | S13: 91260 | T13: 91261 | U13: & HIGHER | Y13: 25 | Z13: 20 | AA13: 15 | AB13: 10 | AC13: 5 | AD13: 0 | AE13: Not Eligible
A14: 11 | B14: 0 | C14: TO | D14: 16495 | E14: 16496 | F14: TO | G14: 32990 | H14: 32991 | I14: TO | J14: 49485 | K14: 49486 | L14: TO | M14: 65980 | N14: 65981 | O14: TO | P14: 82475 | Q14: 82476 | R14: TO | S14: 98970 | T14: 98971 | U14: & HIGHER | X14: 6 | Y14: =B9 -> 0 | Z14: =E9 -> 10071 | AA14: =H9 -> 20141 | AB14: =K9 -> 30211 | AC14: =N9 -> 40281 | AD14: =Q9 -> 50351 | AE14: =T9 -> 60421 | AF14: =HLOOKUP($AJ5,Y14:AE15,2) -> 25 | AG14: hlookup if in this row
A15: 12 | B15: 0 | C15: TO | D15: 17780 | E15: 17781 | F15: TO | G15: 35560 | H15: 35561 | I15: TO | J15: 53340 | K15: 53341 | L15: TO | M15: 71120 | N15: 71121 | O15: TO | P15: 88900 | Q15: 88901 | R15: TO | S15: 106680 | T15: 106681 | U15: & HIGHER | Y15: 25 | Z15: 20 | AA15: 15 | AB15: 10 | AC15: 5 | AD15: 0 | AE15: Not Eligible
A16: EACH PERSON OVER 12 ADD | D16: =D18 -> 1285 | G16: =G18 -> 2570 | J16: =J18 -> 3855 | M16: =M18 -> 5140 | P16: =P18 -> 6425 | S16: =S18 -> 7710 | T16: 7711 | U16: & HIGHER | X16: 7 | Y16: =B10 -> 0 | Z16: =E10 -> 11356 | AA16: =H10 -> 22711 | AB16: =K10 -> 34066 | AC16: =N10 -> 45421 | AD16: =Q10 -> 56776 | AE16: =T10 -> 68131 | AF16: =HLOOKUP($AJ5,Y16:AE17,2) -> 25 | AG16: hlookup if in this row
B17: @ 25% = | D17: =$M$17*0.25 -> 3645 | E17: @ 50% = | G17: =$M$17*0.5 -> 7290 | H17: @ 75% = | J17: =$M$17*0.75 -> 10935 | K17: @ 100% = | M17: 14580 | N17: @ 125% = | P17: =$M$17*1.25 -> 18225 | Q17: @150% | R17: = | S17: =M17*1.5 -> 21870 | Y17: 25 | Z17: 20 | AA17: 15 | AB17: 10 | AC17: 5 | AD17: 0 | AE17: Not Eligible
B18: @ Add'l: | D18: =M18*0.25 -> 1285 | E18: @ Add'l: | G18: =M18*0.5 -> 2570 | H18: @ Add'l: | J18: =M18*0.75 -> 3855 | K18: @ Add'l: | M18: 5140 | N18: @ Add'l: | P18: =M18*1.25 -> 6425 | S18: =M18*1.5 -> 7710 | X18: 8 | Y18: =-B11 -> 0 | Z18: =E11 -> 12641 | AA18: =H11 -> 25281 | AB18: =K11 -> 37921 | AC18: =N11 -> 50561 | AD18: =Q11 -> 63201 | AE18: =T11 -> 75841 | AF18: =HLOOKUP($AJ5,Y18:AE19,2) -> 25 | AG18: hlookup if in this row
A19: FPIG = | B19: Federal Poverty Income Guidelines (Health & Human Services Poverty Guidelines) | M19: PG = | N19: Poverty Guidelines | Y19: 25 | Z19: 20 | AA19: 15 | AB19: 10 | AC19: 5 | AD19: 0 | AE19: Not Eligible
X20: 9 | Y20: =B12 -> 0 | Z20: =E12 -> 13926 | AA20: =H12 -> 27851 | AB20: =K12 -> 41776 | AC20: =N12 -> 55701 | AD20: =Q12 -> 69626 | AE20: =T12 -> 83551 | AF20: =HLOOKUP($AJ5,Y20:AE21,2) -> 25 | AG20: hlookup if in this row
Y21: 25 | Z21: 20 | AA21: 15 | AB21: 10 | AC21: 5 | AD21: 0 | AE21: Not Eligible
X22: 10 | Y22: =B13 -> 0 | Z22: =E13 -> 15211 | AA22: =H13 -> 30421 | AB22: =K13 -> 45631 | AC22: =N13 -> 60841 | AD22: =Q13 -> 76051 | AE22: =T13 -> 91261 | AF22: =HLOOKUP($AJ5,Y22:AE23,2) -> 25 | AG22: hlookup if in this row
Y23: 25 | Z23: 20 | AA23: 15 | AB23: 10 | AC23: 5 | AD23: 0 | AE23: Not Eligible
X24: 11 | Y24: =B14 -> 0 | Z24: =E14 -> 16496 | AA24: =H14 -> 32991 | AB24: =K14 -> 49486 | AC24: =N14 -> 65981 | AD24: =Q14 -> 82476 | AE24: =T14 -> 98971 | AF24: =HLOOKUP($AJ5,Y24:AE25,2) -> 25 | AG24: hlookup if in this row
Y25: 25 | Z25: 20 | AA25: 15 | AB25: 10 | AC25: 5 | AD25: 0 | AE25: Not Eligible
X26: 12 | Y26: =B15 -> 0 | Z26: =E15 -> 17781 | AA26: =H15 -> 35561 | AB26: =K15 -> 53341 | AC26: =N15 -> 71121 | AD26: =Q15 -> 88901 | AE26: =T15 -> 106681 | AF26: =HLOOKUP($AJ5,Y26:AE27,2) -> 25 | AG26: hlookup if in this row
Y27: 25 | Z27: 20 | AA27: 15 | AB27: 10 | AC27: 5 | AD27: 0 | AE27: Not Eligible

Sheet Lookup Alaska (hidden)
A1: FACTOR NO. 1 - HIP ELIGIBILITY/SELECTION CRITERIA @ 150%
A2: INCOME GUIDELINE POINT SCHEDULE FOR ALASKA
C3: 25 | F3: 20 | I3: 15 | L3: 10 | O3: 5 | R3: 0 | U3: Ineligible | AJ3: Income | AK3: Family Size | AL3: Answer
A4: 1 | B4: 0 | C4: TO | D4: =D17 -> 4552.5 | E4: =D4+1 -> 4553.5 | F4: TO | G4: =G17 -> 9105 | H4: =G4+1 -> 9106 | I4: TO | J4: =J17 -> 13657.5 | K4: =J4+1 -> 13658.5 | L4: TO | M4: =M17 -> 18210 | N4: =M4+1 -> 18211 | O4: TO | P4: =P17 -> 22762.5 | Q4: =P4+1 -> 22763.5 | R4: TO | S4: =S17 -> 27315 | T4: =S4+1 -> 27316 | U4: & HIGHER | X4: 1 | Y4: =B4 -> 0 | Z4: =E4 -> 4553.5 | AA4: =H4 -> 9106 | AB4: =K4 -> 13658.5 | AC4: =N4 -> 18211 | AD4: =Q4 -> 22763.5 | AE4: =T4 -> 27316 | AF4: =HLOOKUP($AJ5,Y4:AE5,2) -> 25 | AG4: hlookup if in this row
A5: 2 | B5: 0 | C5: TO | D5: 5387.5 | E5: 5388.5 | F5: TO | G5: =G4+G$16 -> 12320 | H5: 12321 | I5: TO | J5: =J4+J$16 -> 18480 | K5: 18481 | L5: TO | M5: =M4+M$16 -> 24640 | N5: 24641 | O5: TO | P5: =P4+P$16 -> 30800 | Q5: 30801 | R5: TO | S5: =S4+S$16 -> 36960 | T5: 36961 | U5: & HIGHER | W5: 1 | Y5: 25 | Z5: 20 | AA5: 15 | AB5: 10 | AC5: 5 | AD5: 0 | AE5: Not Eligible | AJ5: =Form!G12 -> 0 | AK5: =Form!E12 -> 0 | AL5: =VLOOKUP(AK5,Income_1,9) -> 
A6: 3 | B6: 0 | C6: TO | D6: 6787.5 | E6: 6788.5 | F6: TO | G6: 15535 | H6: 15536 | I6: TO | J6: 23302.5 | K6: 23303.5 | L6: TO | M6: 31070 | N6: 31071 | O6: TO | P6: 38837.5 | Q6: 38838.5 | R6: TO | S6: 46605 | T6: 46606 | U6: & HIGHER | X6: 2 | Y6: =B5 -> 0 | Z6: =E5 -> 5388.5 | AA6: =H5 -> 12321 | AB6: =K5 -> 18481 | AC6: =N5 -> 24641 | AD6: =Q5 -> 30801 | AE6: =T5 -> 36961 | AF6: =HLOOKUP($AJ5,Y6:AE7,2) -> 25 | AG6: hlookup if in this row
A7: 4 | B7: 0 | C7: TO | D7: =D6+D$16 -> 8395 | E7: 8396 | F7: TO | G7: 18750 | H7: 18751 | I7: TO | J7: 28125 | K7: 28126 | L7: TO | M7: 37500 | N7: 37501 | O7: TO | P7: 46875 | Q7: 46876 | R7: TO | S7: 56250 | T7: 56251 | U7: & HIGHER | Y7: 25 | Z7: 20 | AA7: 15 | AB7: 10 | AC7: 5 | AD7: 0 | AE7: Not Eligible
A8: 5 | B8: 0 | C8: TO | D8: 10002.5 | E8: 10003.5 | F8: TO | G8: 21965 | H8: 21966 | I8: TO | J8: 32947.5 | K8: 32948.5 | L8: TO | M8: 43930 | N8: 43931 | O8: TO | P8: 54912.5 | Q8: 54913.5 | R8: TO | S8: 65895 | T8: 65896 | U8: & HIGHER | X8: 3 | Y8: =B6 -> 0 | Z8: =E6 -> 6788.5 | AA8: =H6 -> 15536 | AB8: =K6 -> 23303.5 | AC8: =N6 -> 31071 | AD8: =Q6 -> 38838.5 | AE8: =T6 -> 46606 | AF8: =HLOOKUP($AJ5,Y8:AE9,2) -> 25 | AG8: hlookup if in this row
A9: 6 | B9: 0 | C9: TO | D9: 11610 | E9: 11611 | F9: TO | G9: 25180 | H9: 25181 | I9: TO | J9: 37770 | K9: 37771 | L9: TO | M9: 50360 | N9: 50361 | O9: TO | P9: 62950 | Q9: 62951 | R9: TO | S9: 75540 | T9: 75541 | U9: & HIGHER | Y9: 25 | Z9: 20 | AA9: 15 | AB9: 10 | AC9: 5 | AD9: 0 | AE9: Not Eligible
A10: 7 | B10: 0 | C10: TO | D10: 13217.5 | E10: 13218.5 | F10: TO | G10: 28395 | H10: 28396 | I10: TO | J10: 42592.5 | K10: 42593.5 | L10: TO | M10: 56790 | N10: 56791 | O10: TO | P10: 70987.5 | Q10: 70988.5 | R10: TO | S10: 85185 | T10: 85186 | U10: & HIGHER | X10: 4 | Y10: =B7 -> 0 | Z10: =E7 -> 8396 | AA10: =H7 -> 18751 | AB10: =K7 -> 28126 | AC10: =N7 -> 37501 | AD10: =Q7 -> 46876 | AE10: =T7 -> 56251 | AF10: =HLOOKUP($AJ5,Y10:AE11,2) -> 25 | AG10: hlookup if in this row
A11: 8 | B11: 0 | C11: TO | D11: 14825 | E11: 14826 | F11: TO | G11: 31610 | H11: 31611 | I11: TO | J11: 47415 | K11: 47416 | L11: TO | M11: 63220 | N11: 63221 | O11: TO | P11: 79025 | Q11: 79026 | R11: TO | S11: 94830 | T11: 94831 | U11: & HIGHER | Y11: 25 | Z11: 20 | AA11: 15 | AB11: 10 | AC11: 5 | AD11: 0 | AE11: Not Eligible
A12: 9 | B12: 0 | C12: TO | D12: 16432.5 | E12: 16433.5 | F12: TO | G12: 34825 | H12: 34826 | I12: TO | J12: 52237.5 | K12: 52238.5 | L12: TO | M12: 69650 | N12: 69651 | O12: TO | P12: 87062.5 | Q12: 87063.5 | R12: TO | S12: 104475 | T12: 104476 | U12: & HIGHER | X12: 5 | Y12: =B8 -> 0 | Z12: =E8 -> 10003.5 | AA12: =H8 -> 21966 | AB12: =K8 -> 32948.5 | AC12: =N8 -> 43931 | AD12: =Q8 -> 54913.5 | AE12: =T8 -> 65896 | AF12: =HLOOKUP($AJ5,Y12:AE13,2) -> 25 | AG12: hlookup if in this row
A13: 10 | B13: 0 | C13: TO | D13: 18040 | E13: 18041 | F13: TO | G13: 38040 | H13: 38041 | I13: TO | J13: 57060 | K13: 57061 | L13: TO | M13: 76080 | N13: 76081 | O13: TO | P13: 95100 | Q13: 95101 | R13: TO | S13: 114120 | T13: 114121 | U13: & HIGHER | Y13: 25 | Z13: 20 | AA13: 15 | AB13: 10 | AC13: 5 | AD13: 0 | AE13: Not Eligible
A14: 11 | B14: 0 | C14: TO | D14: 19647.5 | E14: 19648.5 | F14: TO | G14: 41255 | H14: 41256 | I14: TO | J14: 61882.5 | K14: 61883.5 | L14: TO | M14: 82510 | N14: 82511 | O14: TO | P14: 103137.5 | Q14: 103138.5 | R14: TO | S14: 123765 | T14: 123766 | U14: & HIGHER | X14: 6 | Y14: =B9 -> 0 | Z14: =E9 -> 11611 | AA14: =H9 -> 25181 | AB14: =K9 -> 37771 | AC14: =N9 -> 50361 | AD14: =Q9 -> 62951 | AE14: =T9 -> 75541 | AF14: =HLOOKUP($AJ5,Y14:AE15,2) -> 25 | AG14: hlookup if in this row
A15: 12 | B15: 0 | C15: TO | D15: 21255 | E15: 21256 | F15: TO | G15: 44470 | H15: 44471 | I15: TO | J15: 66705 | K15: 66706 | L15: TO | M15: 88940 | N15: 88941 | O15: TO | P15: 111175 | Q15: 111176 | R15: TO | S15: 133410 | T15: 133411 | U15: & HIGHER | Y15: 25 | Z15: 20 | AA15: 15 | AB15: 10 | AC15: 5 | AD15: 0 | AE15: Not Eligible
A16: EACH PERSON OVER 12 ADD | D16: =D18 -> 1607.5 | G16: =G18 -> 3215 | J16: =J18 -> 4822.5 | M16: =M18 -> 6430 | P16: =P18 -> 8037.5 | S16: =S18 -> 9645 | T16: 9646 | U16: & HIGHER | X16: 7 | Y16: =B10 -> 0 | Z16: =E10 -> 13218.5 | AA16: =H10 -> 28396 | AB16: =K10 -> 42593.5 | AC16: =N10 -> 56791 | AD16: =Q10 -> 70988.5 | AE16: =T10 -> 85186 | AF16: =HLOOKUP($AJ5,Y16:AE17,2) -> 25 | AG16: hlookup if in this row
B17: @ 25% = | D17: =$M$17*0.25 -> 4552.5 | E17: @ 50% = | G17: =$M$17*0.5 -> 9105 | H17: @ 75% = | J17: =$M$17*0.75 -> 13657.5 | K17: @ 100% = | M17: 18210 | N17: @ 125% = | P17: =$M$17*1.25 -> 22762.5 | Q17: @150% | R17: = | S17: =M17*1.5 -> 27315 | Y17: 25 | Z17: 20 | AA17: 15 | AB17: 10 | AC17: 5 | AD17: 0 | AE17: Not Eligible
B18: @ Add'l: | D18: =M18*0.25 -> 1607.5 | E18: @ Add'l: | G18: =M18*0.5 -> 3215 | H18: @ Add'l: | J18: =M18*0.75 -> 4822.5 | K18: @ Add'l: | M18: 6430 | N18: @ Add'l: | P18: =M18*1.25 -> 8037.5 | S18: =M18*1.5 -> 9645 | X18: 8 | Y18: =B11 -> 0 | Z18: =E11 -> 14826 | AA18: =H11 -> 31611 | AB18: =K11 -> 47416 | AC18: =N11 -> 63221 | AD18: =Q11 -> 79026 | AE18: =T11 -> 94831 | AF18: =HLOOKUP($AJ5,Y18:AE19,2) -> 25 | AG18: hlookup if in this row
A19: FPIG = | B19: Federal Poverty Income Guidelines (Health & Human Services Poverty Guidelines) | M19: PG = | N19: Poverty Guidelines | Y19: 25 | Z19: 20 | AA19: 15 | AB19: 10 | AC19: 5 | AD19: 0 | AE19: Not Eligible
X20: 9 | Y20: =B12 -> 0 | Z20: =E12 -> 16433.5 | AA20: =H12 -> 34826 | AB20: =K12 -> 52238.5 | AC20: =N12 -> 69651 | AD20: =Q12 -> 87063.5 | AE20: =T12 -> 104476 | AF20: =HLOOKUP($AJ5,Y20:AE21,2) -> 25 | AG20: hlookup if in this row
Y21: 25 | Z21: 20 | AA21: 15 | AB21: 10 | AC21: 5 | AD21: 0 | AE21: Not Eligible
X22: 10 | Y22: =B13 -> 0 | Z22: =E13 -> 18041 | AA22: =H13 -> 38041 | AB22: =K13 -> 57061 | AC22: =N13 -> 76081 | AD22: =Q13 -> 95101 | AE22: =T13 -> 114121 | AF22: =HLOOKUP($AJ5,Y22:AE23,2) -> 25 | AG22: hlookup if in this row
Y23: 25 | Z23: 20 | AA23: 15 | AB23: 10 | AC23: 5 | AD23: 0 | AE23: Not Eligible
X24: 11 | Y24: =B14 -> 0 | Z24: =E14 -> 19648.5 | AA24: =H14 -> 41256 | AB24: =K14 -> 61883.5 | AC24: =N14 -> 82511 | AD24: =Q14 -> 103138.5 | AE24: =T14 -> 123766 | AF24: =HLOOKUP($AJ5,Y24:AE25,2) -> 25 | AG24: hlookup if in this row
Y25: 25 | Z25: 20 | AA25: 15 | AB25: 10 | AC25: 5 | AD25: 0 | AE25: Not Eligible
X26: 12 | Y26: =B15 -> 0 | Z26: =E15 -> 21256 | AA26: =H15 -> 44471 | AB26: =K15 -> 66706 | AC26: =N15 -> 88941 | AD26: =Q15 -> 111176 | AE26: =T15 -> 133411 | AF26: =HLOOKUP($AJ5,Y26:AE27,2) -> 25 | AG26: hlookup if in this row
Y27: 25 | Z27: 20 | AA27: 15 | AB27: 10 | AC27: 5 | AD27: 0 | AE27: Not Eligible

Sheet TribePartI (2) (hidden)
A1: PART I - TRIBAL WORK PLAN | L1: Date: | N1: =IF(Profile!D17=0,"",Profile!D17) -> 
A2: 1 | B2: Work Plan for Fiscal Year: | E2: =IF(Profile!D9=0,"",Profile!D9) -> 2024 | K2: Name: | L2: =IF(Profile!D10=0,"",Profile!D10) -> 
A3: 2 | B3: Name of Tribe / Consortium: | E3: =IF(Profile!D6=0,"",Profile!D6) -> Quechen | K3: Title: | L3: =IF(Profile!D11=0,"",Profile!D11) -> 
A4: 3 | B4: Number of Eligible Applicants: | E4: =IF(M2052=0,"",M2052) -> 10 | K4: Phone: | L4: =IF(Profile!D12=0,"",Profile!D12) -> 
A5: 4 | B5: Number of Applications Received: | E5: =IF(B2052=0,"",B2052) -> Pretty Weasel | K5: Fax: | L5: =IF(Profile!D13=0,"",Profile!D13) -> 
B6: See instructions for printing form
A7: 5. Name of Eligible Applicant (ranked in order of need) | E7: 6. Applicant's Servicing Tribe | F7: 7. Program Category (Enter One As Applicable) | K7: 8a. Estimated Start Date | L7: 8b. Estimated Project Costs 25 CFR 256.17(b))** | M7: Eligibility Status | N7: 8c. Priority Ranking Points (ranked in order from highest to lowest)
B9: Last | C9: First | D9: Suffix | F9: (A) | G9: (B) | H9: (C-1) | I9: (C-2) | J9: (D)
A10: 1 | B10: Charbonneau | C10: Richard | D10: J | E10: Turtle Montain Band of Chippewa | I10: C-2 | K10: 42186 | L10: 120000 | M10: 57 | N10: 81
A11: =A10+1 -> 2 | B11: Grant | C11: Francis | D11: P | E11: Turtle Montain Band of Chippewa | H11: C-1 | K11: 42186 | L11: 120000 | M11: 54 | N11: 70
A12: =A11+1 -> 3 | B12: Grandboise | C12: Donald | E12: Turtle Montain Band of Chippewa | H12: C-1 | K12: 42186 | L12: 120000 | M12: 50 | N12: 60
A13: 4 | B13: Janis | C13: Leo | E13: Oglala Sioux Tribe | H13: C-1 | K13: 42186 | L13: 120000 | M13: 0
A14: 5 | B14: Black Smith | C14: Pete | E14: Oglala Sioux Tribe | G14: B | K14: 42186 | L14: 35000 | M14: 0
A15: 6 | B15: Brewer | C15: Jennifer | E15: Oglala Sioux Tribe | H15: C-1 | K15: 42186 | L15: 120000 | M15: 2
A16: 7 | B16: Grass | C16: Kirsten | E16: Oglala Sioux Tribe | H16: C-1 | K16: 42186 | L16: 120000 | M16: 2
A17: 8 | B17: Tobacco | C17: Hattie | E17: Oglala Sioux Tribe | H17: C-1 | K17: 42186 | L17: 120000 | M17: 3
A18: 9 | B18: Fox | C18: Holly | E18: Three Affiliated Tribes | H18: C-1 | K18: 42186 | L18: 120000 | M18: 3
A19: 10 | B19: Gegleman | C19: Anita | E19: Three Affiliated Tribes | H19: C-1 | K19: 42186 | L19: 120000 | M19: 3
A20: 11 | B20: Crows Heart | C20: Richard | E20: Three Affiliated Tribes | H20: C-1 | K20: 42186 | L20: 120000 | M20: 3
A21: 12 | B21: Morrison | C21: Beverly | E21: Cheyenne River Sioux Tribe | I21: C-2 | K21: 42186 | L21: 120000 | M21: 3
A22: 13 | B22: McCoy | C22: Hanni | E22: Three Affiliated Tribes | H22: C-1 | K22: 42186 | L22: 120000 | M22: 4
A23: 14 | B23: Felix-Wells | C23: Corrine | E23: Three Affiliated Tribes | H23: C-1 | K23: 42186 | L23: 120000 | M23: 5
A24: 15 | B24: Black Hawk | C24: Dinah | E24: Three Affiliated Tribes | H24: C-1 | K24: 42186 | L24: 120000 | M24: 5
A25: 16 | B25: Looks Twice | C25: Georgine | E25: Oglala Sioux Tribe | G25: B | K25: 42186 | L25: 35000 | M25: 6
A26: 17 | B26: Walks Out | C26: Darlene | E26: Oglala Sioux Tribe | G26: B | K26: 42186 | L26: 35000 | M26: 7
A27: 18 | B27: Brave Eagle | C27: Theresa | E27: Oglala Sioux Tribe | H27: C-1 | K27: 42186 | L27: 120000 | M27: 8
A28: 19 | B28: Murphy | C28: Claire | E28: Turtle Montain Band of Chippewa | H28: C-1 | K28: 42186 | L28: 120000 | M28: 10
A29: 20 | B29: Trottier | C29: Tresa | E29: Turtle Montain Band of Chippewa | G29: B | K29: 42186 | L29: 35000 | M29: 10
A30: 21 | B30: James | C30: Christina | E30: Turtle Montain Band of Chippewa | G30: B | K30: 42186 | L30: 35000 | M30: 10
A31: 22 | B31: Decoteau | C31: Tammy | E31: Turtle Montain Band of Chippewa | H31: C-1 | K31: 42186 | L31: 120000 | M31: 10
A32: 23 | B32: Desjarlais | C32: Lisa | D32: M | E32: Turtle Montain Band of Chippewa | G32: B | K32: 42186 | L32: 35000 | M32: 10
A33: 24 | B33: Scott | C33: Alice | E33: Turtle Montain Band of Chippewa | G33: B | K33: 42186 | L33: 35000 | M33: 10
A34: 25 | B34: Payer | C34: Vicky | E34: Turtle Montain Band of Chippewa | G34: B | K34: 42186 | L34: 35000 | M34: 10
A35: 26 | B35: Nadeau | C35: Felicia | E35: Turtle Montain Band of Chippewa | H35: C-1 | K35: 42186 | L35: 120000 | M35: 10
A36: 27 | B36: Bercier | C36: Jerilyn | E36: Turtle Montain Band of Chippewa | H36: C-1 | K36: 42186 | L36: 120000 | M36: 10
A37: 28 | B37: Brien | C37: Patricia | E37: Turtle Montain Band of Chippewa | H37: C-1 | K37: 42186 | L37: 120000 | M37: 10
A38: 29 | B38: Lavallie | C38: Jamie | E38: Turtle Montain Band of Chippewa | H38: C-1 | K38: 42186 | L38: 120000 | M38: 10
A39: 30 | B39: Decoteau | C39: Monica | E39: Turtle Montain Band of Chippewa | G39: B | K39: 42186 | L39: 35000 | M39: 10
A40: 31 | B40: Handy | C40: Debra | E40: Turtle Montain Band of Chippewa | G40: B | K40: 42186 | L40: 35000 | M40: 10
A41: 32 | B41: Schroeder | C41: Brooke | E41: Turtle Montain Band of Chippewa | H41: C-1 | K41: 42186 | L41: 120000 | M41: 10
A42: 33 | B42: Davis | C42: Francine | E42: Turtle Montain Band of Chippewa | H42: C-1 | K42: 42186 | L42: 120000 | M42: 10
A43: 34 | B43: Azure | C43: Holly | E43: Turtle Montain Band of Chippewa | H43: C-1 | K43: 42186 | L43: 120000 | M43: 10
A44: 35 | B44: Gourneau | C44: Dianna | E44: Turtle Montain Band of Chippewa | H44: C-1 | K44: 42186 | L44: 120000 | M44: 10
A45: 36 | B45: Grant | C45: Austin | E45: Turtle Montain Band of Chippewa | H45: C-1 | K45: 42186 | L45: 120000 | M45: 10
A46: 37 | B46: Fox | C46: Marla | E46: Turtle Montain Band of Chippewa | G46: B | K46: 42186 | L46: 35000 | M46: 10
A47: 38 | B47: Martin | C47: Anita | E47: Turtle Montain Band of Chippewa | H47: C-1 | K47: 42186 | L47: 120000 | M47: 10
A48: 39 | B48: Hanson | C48: Cherie | E48: Turtle Montain Band of Chippewa | H48: C-1 | K48: 42186 | L48: 120000 | M48: 10
A49: 40 | B49: Keplin | C49: Mark | D49: Jr | E49: Turtle Montain Band of Chippewa | H49: C-1 | K49: 42186 | L49: 120000 | M49: 10
A50: 41 | B50: Gunville | C50: Janelle | E50: Turtle Montain Band of Chippewa | G50: B | K50: 42186 | L50: 35000 | M50: 10
A51: 42 | B51: Poitra | C51: Kim | E51: Turtle Montain Band of Chippewa | G51: B | K51: 42186 | L51: 35000 | M51: 10
A52: 43 | B52: Morin | C52: Alisha | E52: Turtle Montain Band of Chippewa | H52: C-1 | K52: 42186 | L52: 120000 | M52: 10
A53: 44 | B53: Desjarlais | C53: Ardis | E53: Turtle Montain Band of Chippewa | H53: C-1 | K53: 42186 | L53: 120000 | M53: 10
A54: 45 | B54: Peltier | C54: Matthew | E54: Turtle Montain Band of Chippewa | H54: C-1 | K54: 42186 | L54: 120000 | M54: 10
A55: 46 | B55: Gourneau | C55: Rodney | E55: Turtle Montain Band of Chippewa | H55: C-1 | K55: 42186 | L55: 120000 | M55: 10
A56: 47 | B56: Peltier | C56: Roderick | E56: Turtle Montain Band of Chippewa | H56: C-1 | K56: 42186 | L56: 120000 | M56: 10
A57: 48 | B57: Lafountain | C57: Shana | E57: Turtle Montain Band of Chippewa | G57: B | K57: 42186 | L57: 35000 | M57: 10
A58: 49 | B58: Keplin | C58: Terry | E58: Turtle Montain Band of Chippewa | H58: C-1 | K58: 42186 | L58: 120000 | M58: 10
A59: 50 | B59: Thomas | C59: James | E59: Turtle Montain Band of Chippewa | H59: C-1 | K59: 42186 | L59: 120000 | M59: 10
A60: 51 | B60: Malaterre | C60: Dianne | E60: Turtle Montain Band of Chippewa | G60: B | K60: 42186 | L60: 35000 | M60: 10
A61: 52 | B61: Belgarde | C61: Larry | E61: Turtle Montain Band of Chippewa | G61: B | K61: 42186 | L61: 35000 | M61: 10
A62: 53 | B62: Johnson | C62: Sarah | E62: Turtle Montain Band of Chippewa | H62: C-1 | K62: 42186 | L62: 120000 | M62: 10
A63: 54 | B63: Decoteau | C63: Bryce | E63: Turtle Montain Band of Chippewa | H63: C-1 | K63: 42186 | L63: 120000 | M63: 10
A64: 55 | B64: Morin | C64: Kristen | E64: Turtle Montain Band of Chippewa | G64: B | K64: 42186 | L64: 35000 | M64: 10
A65: 56 | B65: Azure | C65: Matthew | E65: Turtle Montain Band of Chippewa | H65: C-1 | K65: 42186 | L65: 120000 | M65: 10
A66: 57 | B66: Davis | C66: Jamie | E66: Turtle Montain Band of Chippewa | H66: C-1 | K66: 42186 | L66: 120000 | M66: 10
A67: 58 | B67: Jeanotte | C67: Faith | E67: Turtle Montain Band of Chippewa | H67: C-1 | K67: 42186 | L67: 120000 | M67: 10
A68: 59 | B68: Walter | C68: Jetney | E68: Turtle Montain Band of Chippewa | H68: C-1 | K68: 42186 | L68: 120000 | M68: 10
A69: 60 | B69: Peltier | C69: Harvey | D69: Jr | E69: Turtle Montain Band of Chippewa | H69: C-1 | K69: 42186 | L69: 120000 | M69: 10
A70: 61 | B70: Poitra | C70: Sheila | E70: Turtle Montain Band of Chippewa | H70: C-1 | K70: 42186 | L70: 120000 | M70: 10
A71: 62 | B71: Munoz | C71: Geraldine | E71: Turtle Montain Band of Chippewa | G71: B | K71: 42186 | L71: 35000 | M71: 10
A72: 63 | B72: Owens | C72: Misty | E72: Turtle Montain Band of Chippewa | H72: C-1 | K72: 42186 | L72: 120000 | M72: 10
A73: 64 | B73: Marcellais | C73: Cameron | E73: Turtle Montain Band of Chippewa | G73: B | K73: 42186 | L73: 35000 | M73: 10
A74: 65 | B74: Parisien | C74: Nadine | E74: Turtle Montain Band of Chippewa | G74: B | K74: 42186 | L74: 35000 | M74: 10
A75: 66 | B75: Lafountain | C75: April | E75: Turtle Montain Band of Chippewa | G75: B | K75: 42186 | L75: 35000 | M75: 10
A76: =A75+1 -> 67 | B76: Houle | C76: Stephanie | E76: Turtle Montain Band of Chippewa | G76: B | K76: 42186 | L76: 35000 | M76: 10
A77: 68 | B77: Delorme | C77: Darrell | E77: Turtle Montain Band of Chippewa | H77: C-1 | K77: 42186 | L77: 120000 | M77: 10
A78: 69 | B78: Lafromboise | C78: Clifford | D78: Jr | E78: Turtle Montain Band of Chippewa | G78: B | K78: 42186 | L78: 35000 | M78: 10
A79: 70 | B79: Peltier | C79: Rita | E79: Turtle Montain Band of Chippewa | G79: B | K79: 42186 | L79: 35000 | M79: 10
A80: 71 | B80: Oslin | C80: Cheryl | E80: Turtle Montain Band of Chippewa | G80: B | K80: 42186 | L80: 35000 | M80: 10
A81: 72 | B81: Longie | C81: Robert | E81: Turtle Montain Band of Chippewa | G81: B | K81: 42186 | L81: 35000 | M81: 10
A82: 73 | B82: Wallette | C82: Felix | E82: Turtle Montain Band of Chippewa | G82: B | K82: 42186 | L82: 35000 | M82: 10
A83: 74 | B83: Gourneau | C83: Antoine | E83: Turtle Montain Band of Chippewa | G83: B | K83: 42186 | L83: 35000 | M83: 10
A84: 75 | B84: Morin | C84: Roland | E84: Turtle Montain Band of Chippewa | G84: B | K84: 42186 | L84: 35000 | M84: 10
A85: 76 | B85: Desjarlais | C85: Lisa | E85: Turtle Montain Band of Chippewa | G85: B | K85: 42186 | L85: 35000 | M85: 10
A86: 77 | B86: Hyde | C86: Margaret | E86: Turtle Montain Band of Chippewa | G86: B | K86: 42186 | L86: 35000 | M86: 10
A87: 78 | B87: Charette | C87: Maryann | E87: Turtle Montain Band of Chippewa | G87: B | K87: 42186 | L87: 35000 | M87: 10
A88: 79 | B88: Zaste | C88: Shelly | E88: Turtle Montain Band of Chippewa | H88: C-1 | K88: 42186 | L88: 120000 | M88: 10
A89: 80 | B89: Allery | C89: Dorine | E89: Turtle Montain Band of Chippewa | H89: C-1 | K89: 42186 | L89: 120000 | M89: 10
A90: 81 | B90: Frederick | C90: David | E90: Turtle Montain Band of Chippewa | H90: C-1 | K90: 42186 | L90: 120000 | M90: 10
A91: 82 | B91: Larocque | C91: Roxanne | E91: Turtle Montain Band of Chippewa | H91: C-1 | K91: 42186 | L91: 120000 | M91: 10
A92: 83 | B92: Jeanotte | C92: Barbara | E92: Turtle Montain Band of Chippewa | H92: C-1 | K92: 42186 | L92: 120000 | M92: 10
A93: 84 | B93: Hawley | C93: Rosa | E93: Turtle Montain Band of Chippewa | H93: C-1 | K93: 42186 | L93: 120000 | M93: 10
A94: 85 | B94: St. Claire | C94: Nina | E94: Turtle Montain Band of Chippewa | H94: C-1 | K94: 42186 | L94: 120000 | M94: 10
A95: 86 | B95: Amyotte | C95: Norbert | E95: Turtle Montain Band of Chippewa | G95: B | K95: 42186 | L95: 35000 | M95: 10
A96: 87 | B96: Allery | C96: Lou ann | E96: Turtle Montain Band of Chippewa | G96: B | K96: 42186 | L96: 35000 | M96: 10
A97: 88 | B97: Akewanzie | C97: Marvin | E97: Turtle Montain Band of Chippewa | H97: C-1 | K97: 42186 | L97: 120000 | M97: 10
A98: 89 | B98: Smith | C98: Bonita | E98: Turtle Montain Band of Chippewa | G98: B | K98: 42186 | L98: 35000 | M98: 10
A99: 90 | B99: Trottier | C99: Antoinette | E99: Turtle Montain Band of Chippewa | G99: B | K99: 42186 | L99: 35000 | M99: 10
A100: 91 | B100: Counts | C100: Roger | E100: Turtle Montain Band of Chippewa | G100: B | K100: 42186 | L100: 35000 | M100: 10
A101: 92 | B101: Crissler | C101: Angela | E101: Turtle Montain Band of Chippewa | H101: C-1 | K101: 42186 | L101: 120000 | M101: 10
A102: 93 | B102: Morin | C102: Paul | E102: Turtle Montain Band of Chippewa | G102: B | K102: 42186 | L102: 35000 | M102: 10
A103: 94 | B103: Houle | C103: Barbara | E103: Turtle Montain Band of Chippewa | G103: B | K103: 42186 | L103: 35000 | M103: 10
A104: 95 | B104: Bruce | C104: Gene | E104: Turtle Montain Band of Chippewa | H104: C-1 | K104: 42186 | L104: 120000 | M104: 10
A105: 96 | B105: Wallette | C105: Doris | E105: Turtle Montain Band of Chippewa | G105: B | K105: 42186 | L105: 35000 | M105: 10
A106: 97 | B106: Delong | C106: Frederick | E106: Turtle Montain Band of Chippewa | G106: B | K106: 42186 | L106: 35000 | M106: 10
A107: 98 | B107: Houle | C107: Wanda | E107: Turtle Montain Band of Chippewa | G107: B | K107: 42186 | L107: 35000 | M107: 10
A108: 99 | B108: Larocque | C108: Garry | E108: Turtle Montain Band of Chippewa | G108: B | K108: 42186 | L108: 35000 | M108: 10
A109: 100 | B109: Decoteau | C109: Roberta | E109: Turtle Montain Band of Chippewa | G109: B | K109: 42186 | L109: 35000 | M109: 10
A110: 101 | B110: Lavallie | C110: Peter | E110: Turtle Montain Band of Chippewa | G110: B | K110: 42186 | L110: 35000 | M110: 10
A111: 102 | B111: Davis | C111: Marla | E111: Turtle Montain Band of Chippewa | G111: B | K111: 42186 | L111: 35000 | M111: 10
A112: 103 | B112: Lavallie | C112: Cindy | E112: Turtle Montain Band of Chippewa | G112: B | K112: 42186 | L112: 35000 | M112: 10
A113: 104 | B113: Larocque | C113: Elaine | E113: Turtle Montain Band of Chippewa | G113: B | K113: 42186 | L113: 35000 | M113: 10
A114: 105 | B114: Decoteau | C114: Lisa | D114: G | E114: Turtle Montain Band of Chippewa | G114: B | K114: 42186 | L114: 35000 | M114: 10
A115: 106 | B115: Gourneau | C115: Debra | E115: Turtle Montain Band of Chippewa | G115: B | K115: 42186 | L115: 35000 | M115: 10
A116: 107 | B116: Higgins | C116: Theresa | E116: Turtle Montain Band of Chippewa | G116: B | K116: 42186 | L116: 35000 | M116: 10
A117: 108 | B117: Lenoir | C117: Patty | E117: Turtle Montain Band of Chippewa | G117: B | K117: 42186 | L117: 35000 | M117: 10
A118: 109 | B118: St. Claire | C118: Winnona | E118: Turtle Montain Band of Chippewa | H118: C-1 | K118: 42186 | L118: 120000 | M118: 10
A119: 110 | B119: Lavallie | C119: Louis | E119: Turtle Montain Band of Chippewa | G119: B | K119: 42186 | L119: 35000 | M119: 10
A120: 111 | B120: Falcon | C120: George | D120: Sr | E120: Turtle Montain Band of Chippewa | H120: C-1 | K120: 42186 | L120: 120000 | M120: 10
A121: 112 | B121: Chase | C121: Todd | E121: Turtle Montain Band of Chippewa | G121: B | K121: 42186 | L121: 35000 | M121: 10
A122: 113 | B122: Lafountain | C122: Larry | D122: J | E122: Turtle Montain Band of Chippewa | H122: C-1 | K122: 42186 | L122: 120000 | M122: 10
A123: 114 | B123: Decoteau | C123: Vernon | E123: Turtle Montain Band of Chippewa | G123: B | K123: 42186 | L123: 35000 | M123: 10
A124: 115 | B124: Lunday | C124: Brent | E124: Turtle Montain Band of Chippewa | G124: B | K124: 42186 | L124: 35000 | M124: 10
A125: 116 | B125: Nadeau | C125: Gale | E125: Turtle Montain Band of Chippewa | G125: B | K125: 42186 | L125: 35000 | M125: 10
A126: 117 | B126: Houle | C126: Donna | E126: Turtle Montain Band of Chippewa | G126: B | K126: 42186 | L126: 35000 | M126: 10
A127: 118 | B127: Monette | C127: Loretta | E127: Turtle Montain Band of Chippewa | G127: B | K127: 42186 | L127: 35000 | M127: 10
A128: 119 | B128: Morin | C128: Vicky | E128: Turtle Montain Band of Chippewa | G128: B | K128: 42186 | L128: 35000 | M128: 10
A129: 120 | B129: Lavallie | C129: Edward | E129: Turtle Montain Band of Chippewa | H129: C-1 | K129: 42186 | L129: 120000 | M129: 10
A130: 121 | B130: Greatwalker | C130: Shelly | E130: Turtle Montain Band of Chippewa | G130: B | K130: 42186 | L130: 35000 | M130: 10
A131: 122 | B131: Burschinger | C131: James | E131: Turtle Montain Band of Chippewa | H131: C-1 | K131: 42186 | L131: 120000 | M131: 10
A132: 123 | B132: Maxon | C132: Tracy | E132: Turtle Montain Band of Chippewa | G132: B | K132: 42186 | L132: 35000 | M132: 10
A133: 124 | B133: Delorme | C133: Chelsi | E133: Turtle Montain Band of Chippewa | H133: C-1 | K133: 42186 | L133: 120000 | M133: 10
A134: 125 | B134: Champagne | C134: Sandra | E134: Turtle Montain Band of Chippewa | G134: B | K134: 42186 | L134: 35000 | M134: 10
A135: 126 | B135: Decoteau | C135: Jana | E135: Turtle Montain Band of Chippewa | H135: C-1 | K135: 42186 | L135: 120000 | M135: 10
A136: 127 | B136: Benson | C136: Anita | E136: Turtle Montain Band of Chippewa | G136: B | K136: 42186 | L136: 35000 | M136: 10
A137: 128 | B137: Counts | C137: Carletta | E137: Turtle Montain Band of Chippewa | H137: C-1 | K137: 42186 | L137: 120000 | M137: 10
A138: 129 | B138: Davis | C138: Uriah | E138: Turtle Montain Band of Chippewa | H138: C-1 | K138: 42186 | L138: 120000 | M138: 10
A139: 130 | B139: Morin | C139: Rhonda | E139: Turtle Montain Band of Chippewa | G139: B | K139: 42186 | L139: 35000 | M139: 10
A140: =A139+1 -> 131 | B140: Keplin | C140: April | E140: Turtle Montain Band of Chippewa | G140: B | K140: 42186 | L140: 35000 | M140: 10
A141: 132 | B141: St. Claire | C141: Shay | E141: Turtle Montain Band of Chippewa | H141: C-1 | K141: 42186 | L141: 120000 | M141: 10
A142: 133 | B142: Frederick | C142: Hope | E142: Turtle Montain Band of Chippewa | G142: B | K142: 42186 | L142: 35000 | M142: 10
A143: 134 | B143: Wallette | C143: Samantha | E143: Turtle Montain Band of Chippewa | H143: C-1 | K143: 42186 | L143: 120000 | M143: 10
A144: 135 | B144: Lavallie | C144: Linus | E144: Turtle Montain Band of Chippewa | G144: B | K144: 42186 | L144: 35000 | M144: 10
A145: 136 | B145: Gourneau | C145: Margo | E145: Turtle Montain Band of Chippewa | G145: B | K145: 42186 | L145: 35000 | M145: 10
A146: 137 | B146: Poitra | C146: Kyla | E146: Turtle Montain Band of Chippewa | G146: B | K146: 42186 | L146: 35000 | M146: 10
A147: 138 | B147: Lavallie | C147: Shelly | E147: Turtle Montain Band of Chippewa | H147: C-1 | K147: 42186 | L147: 120000 | M147: 10
A148: 139 | B148: Poitra | C148: Brett | E148: Turtle Montain Band of Chippewa | G148: B | K148: 42186 | L148: 35000 | M148: 10
A149: 140 | B149: Azure | C149: Myron | E149: Turtle Montain Band of Chippewa | H149: C-1 | K149: 42186 | L149: 120000 | M149: 10
A150: 141 | B150: Decoteau | C150: Brandy | E150: Turtle Montain Band of Chippewa | H150: C-1 | K150: 42186 | L150: 120000 | M150: 10
A151: 142 | B151: Baker | C151: Larry | D151: Jr | E151: Turtle Montain Band of Chippewa | H151: C-1 | K151: 42186 | L151: 120000 | M151: 10
A152: 143 | B152: Azure | C152: Jenita | E152: Turtle Montain Band of Chippewa | G152: B | K152: 42186 | L152: 35000 | M152: 10
A153: 144 | B153: Vondal | C153: Kevin | E153: Turtle Montain Band of Chippewa | G153: B | K153: 42186 | L153: 35000 | M153: 10
A154: 145 | B154: Laverdure | C154: Napoleon | E154: Turtle Montain Band of Chippewa | H154: C-1 | K154: 42186 | L154: 120000 | M154: 10
A155: 146 | B155: Blue | C155: Yvonne | E155: Turtle Montain Band of Chippewa | H155: C-1 | K155: 42186 | L155: 120000 | M155: 10
A156: 147 | B156: Morin | C156: Ramona | E156: Turtle Montain Band of Chippewa | G156: B | K156: 42186 | L156: 35000 | M156: 10
A157: 148 | B157: Delonais | C157: Jessica | E157: Turtle Montain Band of Chippewa | G157: B | K157: 42186 | L157: 35000 | M157: 10
A158: 149 | B158: Gourneau | C158: Terri | E158: Turtle Montain Band of Chippewa | G158: B | K158: 42186 | L158: 35000 | M158: 10
A159: 150 | B159: Poitra | C159: Melinda | E159: Turtle Montain Band of Chippewa | G159: B | K159: 42186 | L159: 35000 | M159: 10
A160: 151 | B160: Lafountain | C160: Leslie | E160: Turtle Montain Band of Chippewa | G160: B | K160: 42186 | L160: 35000 | M160: 10
A161: 152 | B161: Parisien | C161: Lorraine | E161: Turtle Montain Band of Chippewa | G161: B | K161: 42186 | L161: 35000 | M161: 10
A162: 153 | B162: Reopolle | C162: Farrah | E162: Turtle Montain Band of Chippewa | G162: B | K162: 42186 | L162: 35000 | M162: 10
A163: 154 | B163: Delong | C163: Art | E163: Turtle Montain Band of Chippewa | G163: B | K163: 42186 | L163: 35000 | M163: 10
A164: 155 | B164: Keplin | C164: Raylene | E164: Turtle Montain Band of Chippewa | G164: B | K164: 42186 | L164: 35000 | M164: 10
A165: 156 | B165: Gunville | C165: Jerry | E165: Turtle Montain Band of Chippewa | G165: B | K165: 42186 | L165: 35000 | M165: 10
A166: 157 | B166: Chase | C166: Marilyn | E166: Turtle Montain Band of Chippewa | G166: B | K166: 42186 | L166: 35000 | M166: 10
A167: 158 | B167: Smith | C167: John | D167: J | E167: Turtle Montain Band of Chippewa | G167: B | K167: 42186 | L167: 35000 | M167: 10
A168: 159 | B168: Vivier | C168: Randy | E168: Turtle Montain Band of Chippewa | G168: B | K168: 42186 | L168: 35000 | M168: 10
A169: 160 | B169: Demery | C169: Francis | E169: Turtle Montain Band of Chippewa | H169: C-1 | K169: 42186 | L169: 120000 | M169: 10
A170: 161 | B170: Lafountain | C170: Jerilyn | E170: Turtle Montain Band of Chippewa | G170: B | K170: 42186 | L170: 35000 | M170: 10
A171: 162 | B171: Bliss | C171: Andrea | E171: Turtle Montain Band of Chippewa | H171: C-1 | K171: 42186 | L171: 120000 | M171: 10
A172: 163 | B172: Chavez | C172: Toni | E172: Turtle Montain Band of Chippewa | G172: B | K172: 42186 | L172: 35000 | M172: 10
A173: 164 | B173: Robertson | C173: Dimothy | E173: Turtle Montain Band of Chippewa | G173: B | K173: 42186 | L173: 35000 | M173: 10
A174: 165 | B174: Wessels | C174: Wade | E174: Turtle Montain Band of Chippewa | H174: C-1 | K174: 42186 | L174: 120000 | M174: 10
A175: 166 | B175: Aiken | C175: Arlene | E175: Turtle Montain Band of Chippewa | G175: B | K175: 42186 | L175: 35000 | M175: 10
A176: 167 | B176: Azure | C176: Cindy | E176: Turtle Montain Band of Chippewa | H176: C-1 | K176: 42186 | L176: 120000 | M176: 10
A177: 168 | B177: Champagne | C177: Sandy | E177: Turtle Montain Band of Chippewa | G177: B | K177: 42186 | L177: 35000 | M177: 10
A178: 169 | B178: Belgarde | C178: Clarence | E178: Turtle Montain Band of Chippewa | G178: B | K178: 42186 | L178: 35000 | M178: 10
A179: 170 | B179: Decoteau | C179: Rhonda | E179: Turtle Montain Band of Chippewa | H179: C-1 | K179: 42186 | L179: 120000 | M179: 10
A180: 171 | B180: Tillich | C180: Joni | E180: Turtle Montain Band of Chippewa | G180: B | K180: 42186 | L180: 35000 | M180: 10
A181: 172 | B181: Houle | C181: Ola | E181: Turtle Montain Band of Chippewa | G181: B | K181: 42186 | L181: 35000 | M181: 10
A182: 173 | B182: Wilson | C182: Lori | E182: Turtle Montain Band of Chippewa | H182: C-1 | K182: 42186 | L182: 120000 | M182: 10
A183: 174 | B183: Moors | C183: Roxanne | E183: Turtle Montain Band of Chippewa | G183: B | K183: 42186 | L183: 35000 | M183: 10
A184: 175 | B184: Brien | C184: Gerald | E184: Turtle Montain Band of Chippewa | H184: C-1 | K184: 42186 | L184: 120000 | M184: 10
A185: 176 | B185: Hunt | C185: Cindy | E185: Turtle Montain Band of Chippewa | G185: B | K185: 42186 | L185: 35000 | M185: 10
A186: 177 | B186: Guerue | C186: John | E186: Rosebud Sioux Tribe | H186: C-1 | K186: 42186 | L186: 120000 | M186: 10
A187: 178 | B187: Lapointe | C187: Chantelle | E187: Rosebud Sioux Tribe | G187: B | K187: 42186 | L187: 35000 | M187: 10
A188: 179 | B188: Roubideax | C188: Bernadette | E188: Rosebud Sioux Tribe | I188: C-2 | K188: 42186 | L188: 120000 | M188: 10
A189: 180 | B189: Yellow Bird | C189: Laura | E189: Rosebud Sioux Tribe | G189: B | K189: 42186 | L189: 35000 | M189: 10
A190: 181 | B190: Dixon | C190: Maybelle | E190: Rosebud Sioux Tribe | G190: B | K190: 42186 | L190: 35000 | M190: 10
A191: 182 | B191: Young | C191: Elizabeth"Betty" | E191: Rosebud Sioux Tribe | G191: B | K191: 42186 | L191: 35000 | M191: 10
A192: 183 | B192: Young | C192: Loretta | E192: Rosebud Sioux Tribe | H192: C-1 | K192: 42186 | L192: 120000 | M192: 10
A193: 184 | B193: Sedlmejer | C193: Linda | E193: Rosebud Sioux Tribe | G193: B | K193: 42186 | L193: 35000 | M193: 10
A194: 185 | B194: Allard | C194: Shiela | E194: Rosebud Sioux Tribe | H194: C-1 | K194: 42186 | L194: 120000 | M194: 10
A195: 186 | B195: Little Elk | C195: Violet | E195: Rosebud Sioux Tribe | G195: B | K195: 42186 | L195: 35000 | M195: 10
A196: 187 | B196: Jones | C196: Calvin | D196: sr | E196: Rosebud Sioux Tribe | H196: C-1 | K196: 42186 | L196: 120000 | M196: 10
A197: 188 | B197: Kills In Water | C197: Roberta | E197: Rosebud Sioux Tribe | G197: B | K197: 42186 | L197: 35000 | M197: 10
A198: 189 | B198: Decory | C198: Gordon | E198: Rosebud Sioux Tribe | G198: B | K198: 42186 | L198: 35000 | M198: 10
A199: 190 | B199: Young | C199: Lorraine | E199: Rosebud Sioux Tribe | G199: B | K199: 42186 | L199: 35000 | M199: 10
A200: 191 | B200: Zimmernan | C200: Betty | E200: Rosebud Sioux Tribe | G200: B | K200: 42186 | L200: 35000 | M200: 10
A201: 192 | B201: Menard | C201: Marc | D201: sr | E201: Rosebud Sioux Tribe | I201: C-2 | K201: 42186 | L201: 120000 | M201: 10
... 1957 more rows

Sheet Instructions
B2: This workbook was created using Windows 10, Office Suite Excel 10. There may be some compatibility issues when trying to use this workbook with an earlier version of Excel. It may not work with Microsoft Excel 7 Workbook version.
B3: You are using the Electronic VBA Version of the 2024 HIP Tribal Annual Performance Report. This version shall only be used for FY 2024.
B4: This workbook contains macros and formulas, to properly use this Excel Workbook, you must save as enabled Workbook or enable the security macros.
B5: To save for use with an older version of Excel,choose Office,then Save As and select one of these options from the Save As Type dropdown list:1)Excel 10 Workbook;2)Save as type:Excel Enabled Workbook;3)Save by adding your tribe name to file;(e.g. 2024 HIP Tribal Annual Performance Report - Your Tribe name)
B6: The 2024 HIP Tribal Annual Performance Report is due to your respective region by COB December 31, 2023.
B7: Before submitting this workbook to your respective Regional Office, please save as type: Excel Workbook.
B8: Operating Systems: Windows 10
B10: Profile
B11: Item Number Instructions
B12: To properly populate the combo box, please make selection in the regions dropdown box twice.
A13: 1 | B13: Select Region from Dropdown box, twice.
A14: =A13+1 -> 2 | B14: Select Tribe/Consortium from Dropdown box.
A15: =A14+1 -> 3 | B15: Press the continue button.
A16: =A15+1 -> 4 | B16: Select member Tribe of Consortia from Dropdown Box
A17: =A16+1 -> 5 | B17: Provide four digit fiscal year (FY) that identifies fiscal year in which work plan will be implemented. (Fiscal year beginning in October 1, of the current calendar year).
A18: 6 | B18: Provide name of preparer in the event we may need to contact you.
A19: 7 | B19: Select position that you are currently holding from Dropdown Box.
A20: 8 | B20: Provide phone number.
A21: 9 | B21: Provide fax number.
A22: 10 | B22: Provide email address.
A23: 11 | B23: Digital signature, will Autofill when cell "D10" is filled. (Cell is protected)
A24: 12 | B24: Will Autofill when cell "D9" is filled. (Cell is protected)
B26: Form
B27: Portions of this worksheet are protected and have formulas.
A28: 1 | B28: Provide District or Member Tribe of consortia, if applicable.
A29: =A28+1 -> 2 | B29: Provide the Date when the applicant signed the application.
A30: =A29+1 -> 3 | B30: Provide Last Name of Applicant.
A31: =A30+1 -> 4 | B31: Provide First Name of Applicant.
A32: =A31+1 -> 5 | B32: Select Suffix Name from Dropdown Box ( i.e. Sr. Jr. III. IV)
A33: 6 | B33: Provide Tribal Enrollment number of applicant.
A34: 7 | B34: Select Category of service, applicant is requesting from Dropdown Box. (i.e. A, B, C-1, C-2, D)
A35: 8 | B35: Provide total number of occupants in the household.
A36: 9 | B36: Provide total amount of income for all family members.
A37: 10 | B37: Provide birthdate of 1st aged person. (i.e. 06/13/1950)
A38: 11 | B38: Select "Yes" if claiming disability, "No" if no disability.
A39: 12 | B39: Provide number of dependents.
A40: 13 | B40: Select "Yes" if house is in dilapidated condition Select, "No" if house in in repairable condition.
A41: 14 | B41: Select "Yes" if applicant is a Native Veteran
A42: 15 | B42: Provide date when applicant signed application.
A43: 16 | B43: Select "Yes" if applicant received a letter of denial of service and is waiting list from Tribal Housing Authority. Select "Pending" if applicant will get a letter from Housing Authority at a later time. Select "No" if applicant has not obtained a denial letter and is not on the Tribal Housing Authority waiting list.
A44: 17 | B44: Select "Yes" if applicant has received HIP assistance. Select "No" if applicant has "Not" received HIP assistance in their lifetime.
A45: 18 | B45: Select "Yes" if applicant has received housing assistance from the Native American Self Determination Housing Act (NAHASDA) of 1997. Select "No" if applicant has "Not" received housing assistance from NAHASDA.
A46: 19 | B46: Provide an Estimated Start Date. (i.e. 07/16/2013)
A47: 20 | B47: Provide an Estimated cost for project. (i.e. 130,000)
A48: 21 | B48: Click the "Transfer" button to print Priority Calculation sheet and transfer data to worksheets "Priority Calculation" and "Tribe Part I". Place printed calculation sheet in Applicant case file.
A49: 22 | B49: For extra sheets, Click the "Print" button to print the Calculation sheet .
A50: 23
A51: 24
B53: *Program Category: (A) Interim Improvements; (B) Renovations; (C-1) Replacement Housing (replacement of existing, substandard dwelling); (C-2) Replacement Housing (housing provided, no existing dwelling)
B54: Priority List Form
B55: Portions of this worksheet are protected and have formulas.
B56: Row "2", Cell "C2" will auto fill from information entered in worksheet "Form". (Cell is protected)
A57: 1 | B57: Row "2", Cell "M2" will auto fill from information entered in worksheet "Form". (Cell is protected)
A58: =A57+1 -> 2 | B58: Row "3", Cell "M3" will auto fill from information entered in worksheet "Form". (Cell is protected)
A59: =A58+1 -> 3 | B59: Row "4",Cell "M4" will auto fill from information entered in worksheet "Form". (Cell is protected)
A60: 4 | B60: Column B will auto fill from information entered in worksheet "Form".
A61: 5 | B61: Column C will auto fill from information entered in worksheet "Form".
A62: 6 | B62: Column D will auto fill from information entered in worksheet "Form".
A63: 7 | B63: Column E will auto fill from information entered in worksheet "Form".
A64: 8 | B64: Column F will auto fill from information entered in worksheet "Form".
A65: 9 | B65: Column G will auto fill from information entered in worksheet "Form".
A66: 10 | B66: Column H will auto fill from information entered in worksheet "Form".
A67: 11 | B67: Column I will auto fill from information entered in worksheet "Form".
A68: 12 | B68: Column J will auto fill from information entered in worksheet "Form".
A69: 13 | B69: Column K will auto fill from information entered in worksheet "Form".
A70: 14 | B70: Column L will auto fill from information entered in worksheet "Form".
A71: 15 | B71: Column M will auto fill from information entered in worksheet "Form".
A72: 16 | B72: Column N will auto fill from information entered in worksheet "Form".
A73: 17 | B73: Column O will auto fill from information entered in worksheet "Form".
A74: 18 | B74: Column P will auto fill from information entered in worksheet "Form".
A75: 19 | B75: Column Q will auto fill from information entered in worksheet "Form".
A76: 20 | B76: Column R will auto fill from information entered in worksheet "Form".
A77: 21 | B77: Column S will auto fill from information entered in worksheet "Form".
A78: 22 | B78: Column T will auto fill from information entered in worksheet "Form".
A79: 23 | B79: Column U will auto fill from information entered in worksheet "Form".
A80: 24 | B80: Column V will auto fill from information entered in worksheet "Form".
A81: 25 | B81: When printing Priority Calculation sheet, to prevent printing extra sheets, select file, select print, select active sheets and select the number of sheets you want to print.
B83: Tribe Part I
B84: Item Number Instructions
B86: Row "2", Cell "E2" will auto fill from information entered in worksheet "Form". (Cell is protected)
A87: 1 | B87: Row "2", Cell "K2" will auto fill from information entered in worksheet "Form". (Cell is protected)
B88: Row "3", Cell "E3" will auto fill from information entered in worksheet "Form". (Cell is protected)
A89: =A87+1 -> 2 | B89: Row "3", Cell "K3" will auto fill from information entered in worksheet "Form". (Cell is protected)
B90: Row "4",Cell "E4" will auto fill from information entered in worksheet "Form". (Cell is protected)
A91: =A89+1 -> 3 | B91: Row "4", Cell "K4" will auto fill from information entered in worksheet "Form". (Cell is protected)
B92: Row "5", Cell "E5" will auto fill from information entered in worksheet "Form". (Cell is protected)
A93: =A91+1 -> 4 | B93: Row "5", Cell "K5" will auto fill from information entered in worksheet "Form". (Cell is protected)
B94: Column B will auto fill from information entered in worksheet "Form".
A95: =A93+1 -> 5 | B95: Column C will auto fill from information entered in worksheet "Form".
B96: Column D will auto fill from information entered in worksheet "Form".
B97: Column E will auto fill from information entered in worksheet "Form".
A98: =A95+1 -> 6 | B98: Column F will auto fill from information entered in worksheet "Form".
A99: =A98+1 -> 7 | B99: Column G will auto fill from information entered in worksheet "Form".
B100: Column H will auto fill from information entered in worksheet "Form".
B101: Column I will auto fill from information entered in worksheet "Form".
B102: Column J will auto fill from information entered in worksheet "Form".
A103: 8a | B103: Column K will auto fill from information entered in worksheet "Form".
A104: 8b | B104: Column L will auto fill from information entered in worksheet "Form".
A105: 9a | B105: Column M will auto fill from information entered in worksheet "Form".
B106: Column N will auto fill from information entered in worksheet "Form".
A107: 9b | B107: When printing Tribe Part I, to prevent printing extra sheets, select file, select print,select print active sheets and select the number of sheets you want to print.
B109: Tribe Part II
B110: Item Number Instructions
B111: Portions of this worksheet are protected and have formulas; it contains no macros.
B113: Will autofill (Cells are protected)
A114: 1a | B114: Will autofill (Cells are protected)
A115: 1b | B115: Will autofill (Cells are protected)
A116: 2a | B116: Will autofill (Cells are protected)
A117: 2b | B117: Will autofill (Cells are protected)
A118: 2c | B118: For each recipient provided program service, within accomplishing reporting FY, enter last and first name of recipient.
A119: 3 | B119: Provide Name of the Tribe/Consortium for which information is being reported.
A120: 4 | B120: For each recipient listed in Item Number 3,enter the type of program assistance provided, by entering a digit (1) in the applicable Program Category column(s):
A121: 5 | B121: (A) Interim Improvements (Repairs)
B122: (B) Renovations
B123: (C-1) Replacement Housing (replacement of existing substandard housing).
B124: (C-2) New Housing (provision of housing for families without a home).
B125: (D) Down Payment Assistance (provision of housing in providing a grant for down payment).
B126: For each recipient listed in Item 6a, enter the Actual Start Date (MM/YY) of the construction project.
A127: 6a | B127: For each recipient listed in Item 6, enter Actual Completion Date of the project.
A128: 6b | B128: For each recipient listed in Item Number 7a, enter Actual Administrative Cost of the project.
A129: 7a | B129: For each recipient listed in Item Number 7b, enter Actual Project Cost.
A130: 7b | B130: Will autofill. (Cell is Protected)
A131: 7c

Sheet Profile
B1: Housing Improvement Program | H1: ALASKA | I1: EASTERN OKLAHOMA | J1: EASTERN | K1: GREAT PLAINS | L1: MIDWEST | M1: NAVAJO | N1: NORTHWEST | O1: PACIFIC | P1: ROCKY MOUNTAIN | Q1: SOUTHERN PLAINS | R1: SOUTHWEST | S1: WESTERN
B2: Tribal Annual Performance Report | G2: ALASKA | H2: Arctic Slope Native Association | I2: Chickasaw | J2: Aroostook Band of Micmacs | K2: Crow Creek | L2: Bay Mills | M2: Navajo Nation | N2: Chehalis | O2: Agua Caliente | P2: Blackfeet | Q2: Alabama-Coushatta | R2: Cochiti | S2: Ak-Chin Community | T2: Housing Officer
B3: Profile | G3: EASTERN | H3: Association of Village Council Presidents | I3: Choctaw | J3: Catawba Indian Tribe | K3: Flandreau | L3: Bois Forte | N3: Coeur D'alene | O3: Alturas | P3: Crow | Q3: Apache Of Oklahoma | R3: Isleta | S3: Battle Mountain | T3: Housing Executive Director
G4: EASTERNOKLAHOMA | H4: Bristol Bay Native Association | I4: Creek | J4: Cayuga Nation | K4: Fort Berthold | L4: Fon Du Lac | N4: Colville | O4: Auburn | P4: Fort Belknap | Q4: Caddo | R4: Jemez | S4: Cocopah | T4: Housing Director
B5: 1 | C5: Region | D5: WESTERN | G5: GREATPLAINS | H5: Central Council Tlingit and Haida | I5: Eastern Shawnee | J5: Chickahominy Indian Tribe | K5: Fort Totten | L5: Forest County | N5: Coos Bay | O5: Augustine | P5: Fort Peck | Q5: Cheyenne & Arapaho | R5: Jicarilla | S5: Colorado River | T5: Housing Coordinator
B6: 2 | C6: Tribe / Consortia | D6: Quechen | G6: MIDWEST | H6: Cook Inlet Tribal Council | I6: Miami | J6: Chickahominy Indians - Eastern Division | K6: Lower Brule | L6: Grand Portage | N6: Coquille | O6: Barona | P6: Little Shell | Q6: Citizen Potawatomi | R6: Laguna | S6: Duck Valley | T6: Other
G7: NAVAJO | H7: Council Of Athabascan Tribal Governments | I7: Modoc | J7: Chitimacha Tribe of Louisiana | K7: Oglala Sioux Pine Ridge | L7: Grand Traverse | N7: Cow Creek | O7: Benton | P7: Northern Cheyenne | Q7: Comanche Nation | R7: Mescalero | S7: Duckwater
B8: 3 | C8: Agency | G8: NORTHWEST | H8: Fairbanks Native Association | I8: Osage | J8: Coushatta Indian Tribe of Louisiana | K8: Omaha | L8: Hannahville | N8: Cowlitz | O8: Berry Creek | P8: Chippewa Cree | Q8: Delaware | R8: Nambe | S8: Elko
B9: 4 | C9: Fiscal Year | D9: 2024 | G9: PACIFIC | H9: Inupiat Community of the Arctic Slope | I9: Ottawa | J9: Eastern Band of Cherokee Indians | K9: Ponca | L9: Ho-Chunk (Wis. Potawatomi) | N9: Grand Ronde | O9: Big Lagoon | P9: Northern Arapaho | Q9: Fort Sill Apache | R9: Picuris | S9: Ely
B10: 5 | C10: Name | G10: ROCKYMOUNTAIN | H10: Kawerak Inc | I10: Peoria | J10: Houlton Band of Maliseet Indians | K10: Rosebud Sioux | L10: Huron Band of Potawatomi | N10: Hoh | O10: Big Pine | P10: Shoshone | Q10: Iowa Of Kansas | R10: Pojoaque | S10: Fallon
B11: 6 | C11: Title | G11: SOUTHERNPLAINS | H11: Kuskokwim Native Association | I11: Quapaw | J11: Jena Band of Choctaw Indians | K11: Santee Sioux | L11: Keweenaw Bay | N11: Sb-Jamestown S'kallum | O11: Big Sandy | Q11: Iowa Of Oklahoma | R11: Ramah | S11: Fort McDermitt
B12: 7 | C12: Phone # | G12: SOUTHWEST | H12: Maniilaq Association | I12: Seminole | J12: Mashantucket Pequot Tribe | K12: Sisseton-Wahpeton | L12: Lac Courte Oreilles | N12: Kalispel | O12: Big Valley | Q12: Kaw Of Oklahoma | R12: San Felipe | S12: Fort McDowell
B13: 8 | C13: Fax # | G13: WESTERN | H13: Tanana Chiefs Conference | I13: Seneca-Cayuga | J13: Mashpee Wampanoag Tribe | K13: Standing Rock | L13: Lac Du Flambeau | N13: Klamath | O13: Bishop | Q13: Kickapoo Tribe Of Kansas | R13: San Ildfonso | S13: Gila River
B14: 9 | C14: Email | H14: Native Village Of Akhiok | I14: Thlopthlocco | J14: Miccosukee Tribe | K14: Trenton | L14: Lac Vieux Desert | N14: Kootenai | O14: Blue Lake | Q14: Kickapoo Tribe Of Oklahoma | R14: San Juan | S14: Goshute Business Council
C15: I certify that the information given is true, complete and correct to the best of my knowledge, belief, and they are made in good faith. | H15: Akiachak Native Community | I15: Wyandotte | J15: Mississippi Band of Choctaw Indians | K15: Turtle Mountain | L15: Leech Lake | N15: Lower Elwha | O15: Bridgeport | Q15: Kickapoo Tribe Of Texas | R15: Sandia | S15: Havasupai
B16: 10 | C16: Signature | D16: =IF(D10="","",D10) ->  | H16: Akiak Native Community | J16: Mohegan Indian Tribe | K16: Winnebago | L16: Little River Ottawa | N16: Sb-Lummi | O16: Buena Vista | Q16: Kiowa Of Oklahoma | R16: Santa Ana | S16: Hopi Tribe
B17: 11 | C17: Date | D17: =IF(D16="","",NOW()) ->  | H17: Native Village Of Akutan | J17: Monacan Indian Nation | K17: Yankton | L17: Minominee | N17: Makah | O17: Cabazon | Q17: Otoe-Missouria | R17: Santa Clara | S17: Hopi Tribe (Hpl)
H18: Village Of Alakanuk | J18: Nansemond Indian Tribe | L18: Mille Lacs Ojibwe | N18: Metlakatla | O18: Cahuilla | Q18: Pawnee | R18: Santa Domingo | S18: Hualapai
H19: Alatna Village | J19: Narragansett Indian Tribe | L19: Minnesota Chippewa Tribe | N19: Muckleshoot | O19: Campo | Q19: Ponca | R19: Southern Ute | S19: Kabaib Paiute
H20: Native Village Of Aleknagik | J20: Oneida Indian Nation | L20: Oneida Tribe | N20: Nez Perce | O20: Cedarville | Q20: Prairie Potawatomi | R20: Taos | S20: Lovelock
H21: Allakaket Village | J21: Onondaga Indian Nation | L21: Odawa, Little Traverse | N21: Nisqually | O21: Chicken Ranch | Q21: Sac & Fox - Missouri | R21: Tesuque | S21: Moapa
H22: Native Village Of Ambler | J22: Pamunkey Tribe of Virginia | L22: Pokagon Band Potawatomi | N22: Nooksack | O22: Chico | Q22: Sac & Fox Nation - Oklahoma | R22: Ute Mountain | S22: Pascua Yaqui
H23: Village Of Anaktuvuk Pass | J23: Passamaquoddy Tribe – Indian Township | L23: Prairie Island | N23: Nw Band Shoshoni | O23: Cloverdale | Q23: Tonkawa Tribe of Oklahoma | R23: Ysleta Del Sur | S23: Pyramid Lake
H24: Yupiit Of Andreafski | J24: Passamaquoddy Tribe – Pleasant Point | L24: Red Cliff | N24: Port Gamble | O24: Cold Springs | Q24: Wichita | R24: Zia | S24: Quechen
H25: Angoon Community Association | J25: Penobscot Nation | L25: Red Lake Chippewa | N25: Puyallup | O25: Colusa | R25: Zuni | S25: Reno-Sparks
H26: Village Of Aniak | J26: Poarch Band of Creek Indians | L26: Saginaw Chippewa | N26: Quileute | O26: Cortina | S26: Salt River
H27: Anvik Village | J27: Rappahannock Tribe, Inc. | L27: Sault Ste. Marie | N27: Sb-Quinault | O27: Coyote Valley | S27: San Carlos Apache
H28: Arctic Village | J28: Saint Regis Mohawk Tribe | L28: Shakopee | N28: Salish & Kootenai | O28: Cuyapaipe | S28: San Juan Paiute
B29: PRIVACY ACT STATEMENT | H29: Native Village Of Atka | J29: Seminole Tribe of Florida | L29: Sokaogon | N29: Samish | O29: Dry Creek | S29: Skull Valley
B30: 25 CFR 265 and 25 U.S.C. 13 authorize the collection of this information. This information is covered by the system of record notice “Indian Housing Improvement Program, Interior, BIA-10.” The primary use of this information is to determine eligibility for assistance under the Housing Improvement Program. The records contained therein may only be disclosed in accordance with the routine uses and may not otherwise be disclosed by any means of communication to any person, or to another agency, except pursuant to a written request by, or with prior written consent of the individual to whom the record pertains. If the BIA uses the information furnished on this form for purposes other than those indicated above, it may provide you with an additional statement reflecting those purposes. Executive Order 9397 authorizes the collection of your Social Security number. Furnishing the information is voluntary but failure to do so may result in disapproval of your application. | H30: Village Of Atmautluak | J30: Seneca Nation of Indians | S30: South Fork
H31: Beaver Village | J31: Shinnecock Indian Nation | L31: St Croix | N31: Sauk-Suiattle | O31: Elem (Sulphur Bank) | S31: Summitt Lake
H32: Native Village Of Belkofski | J32: Tonawanda Band of Seneca Indians | L32: Stockbridge Munsee | N32: Shoalwater Bay | O32: Elk Valley | S32: Tohono O'odham
H33: Orutsararmuit Native Village | J33: Tunica/Biloxi Indians of Louisiana | L33: Upper Sioux | N33: Shoshone-Bannock | O33: Enterprise | S33: Tonto Apache
H34: Village Of Bill Moore's Slough | J34: Tuscarora Nation | L34: White Earth | N34: Siletz | O34: Fort Bidwell | S34: Uintah & Ouray
H35: Birch Creek Tribe | J35: Upper Mattaponi Tribe | N35: Skokomish | O35: Fort Independence | S35: Walker River Paiute
H36: Native Village Of Brevig Mission | J36: Wampanoag Tribe of Gay Head (Aquinnah) | N36: Snoqualmie | O36: Greenville | S36: Washoe
B37: PAPERWORK REDUCTION ACT STATEMENT | H37: Native Village Of Buckland | N37: Spokane | O37: Grindstone | S37: Wells
B38: This information is being collected to select eligible families or individuals to participate in the Housing Improvement Program. Response to this request is required to obtain a benefit in accordance with 25 CFR 256. You are not required to respond to this collection of information unless it displays a currently valid OMB control number. This information will be used to determine the eligibility and the ranking of the applicant. Public reporting burden for this form is estimated to average 1 hour per response, including the time for reviewing instructions, gathering and maintaining data, and completing and reviewing the form. Direct comments regarding the burden estimate or any other aspect of this form to Information Collection Clearance Officer – Indian Affairs, 1849 C Street, NW, MS-4141, Washington, DC 20240. | H38: Native Village Of Cantwell | N38: Squaxin Island | O38: Guidiville | S38: White Mountain Apache
H39: Chalkyitsik Village | N39: Stillaguamish | O39: Sb-Hoopa | S39: Yavapai-Apache
H40: Village Of Chefornak | N40: Suquamish | O40: Hopland | S40: Yavapai-Prescott
H41: Chevak Native Village | N41: Swinomish | O41: Inaja-Cosmit | S41: Yerington Paiute
H42: Chickaloon Native Village | N42: Tulalip | O42: Ione | S42: Yomba
H43: Native Village Of Chignik | N43: Umatilla | O43: Jackson
H44: Native Village Of Chignik Lagoon | N44: Upper Skagit | O44: Jamul
H45: Chignik Lake Village | N45: Warm Springs | O45: Karuk
H46: Village Of Crooked Creek | N46: Yakama | O46: La Jolla
H47: Native Village Of Deering | O47: Mooretown
H48: Curyung Tribal Council | O48: Morongo
H49: Village Of Dot Lake | O49: North Fork
H50: Douglas Indian Association | O50: Pala
H51: Native Village Of Eagle | O51: Paskenta
H52: Native Village Of Eek | O52: Pauma
H53: Egegik Village | O53: Pechanga
H54: Eklutna Native Village | O54: Picayune
H55: Native Village Of Ekuk | O55: Pinoleville
H56: Ekwok Village | O56: Pit River
H57: Native Village Of Elim | O57: Potter Valley
H58: Emmonak Village | O58: Quartz Valley
H59: Native Village Of Nanwalek | O59: Ramona
H60: Evansville Village | O60: Redding
H61: Native Village Of Eyak | O61: Redwood Valley
H62: Native Village Of False Pass | O62: Resighini
H63: Native Village Of Fort Yukon | O63: Rincon
H64: Native Village Of Gakona | O64: Robinson
H65: Native Village Of Gambell | O65: Rohnerville
H66: Native Village Of Georgetown | O66: Round Valley
H67: Chinik Eskimo Community | O67: Rumsey
H68: Organized Village Of Grayling | O68: San Manuel
H69: Gulkana Village | O69: San Pasqual
H70: Chilkoot Indian Association | O70: Santa Rosa
H71: Native Village Of Hamilton | O71: Santa Rosa Rancheria
H72: Holy Cross Village | O72: Santa Ynez
H73: Hoonah Indian Association | O73: Santa Ysabel
H74: Native Village Of Hooper Bay | O74: Scotts Valley
H75: Hughes Village | O75: Sheep Ranch
H76: Huslia Village | O76: Sherwood
H77: Hydaburg Cooperative Association | O77: Shingle Springs
H78: Igiugig Village | O78: Smith River
H79: Village Of Iliamna | O79: Soboba
H80: Native Village Of Diomede | O80: Stewarts Points
H81: Ivanoff Bay Village | O81: Susanville
H82: Organized Village Of Kake | O82: Sycuan
H83: Kaktovik Village | O83: Table Bluff
H84: Village Of Kalskag | O84: Table Mountain
H85: Village Of Kaltag | O85: Tejon Tribe
H86: Native Village Of Karluk | O86: Timbi-Sha
H87: Organized Village Of Kasaan | O87: Torres-Martin
H88: Native Village Of Kasigluk | O88: Trinidad
H89: Kenaitze Indian Tribe | O89: Tule River
H90: Ketchikan Indian Corporation | O90: Tuolumne
H91: Native Village Of Kiana | O91: Upper Lake
H92: Agdaagux Tribe Of King Cove | O92: Viejas
H93: King Island Native Community | O93: Wilton Tribe
H94: Native Village Of Kipnuk | O94: Yurok
H95: Native Village Of Kivalina
H96: Klawock Cooperative Association
H97: Chilkat Indian Village
H98: Knik Village
H99: Native Village Of Kobuk
H100: Kokhanok Village
H101: New Koliganek Village Council
H102: Native Village Of Kongiganak
H103: Village Of Kotlik
H104: Native Village Of Kotzebue
H105: Native Village Of Koyuk
H106: Koyukuk Native Village
H107: Organized Village Of Kwethluk
H108: Native Village Of Kwigillingok
H109: Native Village Of Larsen Bay
H110: Levelock Village
H111: Lime Village
H112: Galena Village
H113: Village Of Lower Kalskag
H114: Manley Hot Springs Village
H115: Manokotak Village
H116: Native Village Of Marshall
H117: Native Village Of Mary's Igloo
H118: Mcgrath Native Village
H119: Native Village Of Mekoryuk
H120: Mentasta Traditional Council
H121: Native Village Of Minto
H122: Asa'carsarmiut Tribe
H123: Pauloff Harbor Village
H124: Native Village Of Goodnews Bay
H125: Native Village Of Naknek
H126: Native Village Of Napamite
H127: Native Village Of Napakiak
H128: Native Village Of Napaskiak
H129: Native Village Of Nelson Lagoon
H130: Nenana Native Association
H131: New Stuyahok Village
H132: Newhalen Village
H133: Newtok Village
H134: Native Village Of Nightmute
H135: Nikolai Village
H136: Native Village Of Nikolski
H137: Ninilchik Village
H138: Native Village Of Noatak
H139: Nome Eskimo Community
H140: Nondalton Village
H141: Native Village Of Nuiqsut
H142: Noorvik Native Community
H143: Northway Village
H144: Nulato Village
H145: Native Village Of Nunaptichuk
H146: Village Of Ohogamiut
H147: Village Of Old Harbor
H148: Oscarville Traditional Village
H149: Native Village Of Ouzinkie
H150: Native Village Of Paimut
H151: Pedro Bay Village
H152: Native Village Of Perryville
H153: Petersburg Indian Association
H154: Native Village Of Pilot Point
H155: Pilot Station Traditional Village
H156: Native Village Of Pitka's Point
H157: Platinum Traditional Village
H158: Native Village Of Point Hope
H159: Native Village Of Point Lay
H160: Native Village Of Port Graham
H161: Native Village Of Port Heiden
H162: Native Village Of Port Lions
H163: Portage Creek Village
H164: Native Village Of Kwinhagak
H165: Rampart Village
H166: Village Of Red Devil
H167: Native Village Of Ruby
H168: Iqurmuit Traditional Council
H169: Village Of Salamatoff
H170: Qagan Tayagungin Tribe Of Sand Point
H171: Native Village Of Savoonga
H172: Village Of Saxman
H173: Native Village Of Scammon Bay
H174: Native Village Of Selawik
H175: Seldovia Village Tribe
H176: Shageluk Native Village
H177: Native Village Of Shaktoolik
H178: Native Village Of Sheldon's Point
H179: Native Village Of Shismaref
H180: Native Village Of Shungnak
H181: Sitka Tribe Of Alaska
H182: Skagway Village
H183: Village Of Sleetmute
H184: Village Of Solomon
H185: South Naknek Village
H186: Pribilof Island Aleut Community Of Saint George
H187: Algaaciq Native Village
H188: Native Village Of Saint Michael
H189: Pribilof Island Aleut Community Of Saint Paul
H190: Stebbins Community Association
H191: Native Village Of Stevens
H192: Village Of Stony River
H193: Takotna Village
H194: Native Village Of Tanacross
H195: Native Village Of Tanana
H196: Native Village Of Tatilek
H197: Native Village Of Tazlina
H198: Telida Village
H199: Native Village Of Teller
H200: Native Village Of Tetlin
... 377 more rows

Sheet Form
A1: PRIVACY ACT STATEMENT 25 CFR 265 and 25 U.S.C. 13 authorize the collection of this information. This information is covered by the system of record notice “Indian Housing Improvement Program, Interior, BIA-10.” The primary use of this information is to determine eligibility for assistance under the Housing Improvement Program. The records contained therein may only be disclosed in accordance with the routine uses and may not otherwise be disclosed by any means of communication to any person, or to another agency, except pursuant to a written request by, or with prior written consent of the individual to whom the record pertains. If the BIA uses the information furnished on this form for purposes other than those indicated above, it may provide you with an additional statement reflecting those purposes. Executive Order 9397 authorizes the collection of your Social Security number. Furnishing the information is voluntary but failure to do so may result in disapproval of your application.
A4: Region Tribe of Consortia
A5: 1 | B5: WESTERN | E5: Quechen
B6: District, Agency, Member Tribe of Consortia | G6: Fiscal Year | I6: Date of Application
A7: 3 | G7: 2024
B9: Last Name of Applicant | C9: First Name | E9: Suffix | G9: Enrollment # | I9: Category:
A10: 4
E11: Family Size | G11: Income | K11: Pts
A12: 5 | B12: Household Income: | I12: =IF(B5="Alaska",'Lookup Alaska'!AL5,Lookup!AL5) ->  | J12: =IF(I12="","0",I12) ->  | K12: =IF(G12="","0",J12) -> 0
A14: 6 | B14: Aged Person: | F14: =IF(E14=0,0,(INT(YEARFRAC(TODAY(),E14,1)))) -> 0 | G14: =ROUNDDOWN(F14,0) -> 0 | H14: =IF(F14>55,F14-55,"0") -> 0 | I14: =IF(G14>70,"15",H14) -> 0 | K14: =I14 -> 0
A16: 7 | B16: Disabled Individual: | G16: =IF(E16="Yes","10","0") -> 0 | I16: =IF(E16="Yes","10","0") -> 0 | J16: =I16 -> 0 | K16: =J16 -> 0
A18: 8 | B18: Dependent Children: | C18: Under age 18 | G18: =IF(E18=1,3,0)+IF(E18=2,6,0)+IF(E18=3,9,0)+IF(E18=4,12,0)+IF(E18=5,15,0)+IF(E18>5,15,0) -> 0 | I18: =IF(E18="","0",G18) -> 0 | J18: =I18 -> 0 | K18: =J18 -> 0
A20: 9 | B20: Homeless/ Dilapidated | G20: =IF(OR(E20="Homeless","Dilapidated"),"Homeless","5") -> 5 | H20: =IF(E20="Homeless","5","0") -> 0 | I20: Homeless | K20: =H20 -> 0
A22: 10 | G22: =IF(OR(E22="Overcrowded","Dilapidated"),"Dilapidated","5") -> 5 | H22: =IF(E20="Dilapidated","5","0") -> 0 | I22: Dilapidated | K22: =H22 -> 0
A24: 11 | B24: Overcrowded | G24: =IF(E24="Yes","10","") ->  | I24: =IF(E24="Yes","5","0") -> 0 | J24: =I24 -> 0 | K24: =J24 -> 0
A26: 12 | B26: Veteran | G26: =IF(E26="Yes","5","0") -> 0 | J26: =I26 -> 0 | K26: =G26 -> 0
A28: 13 | B28: Are you applying for DownPayment Assistance, provide a Certificate of Eligibility letter from Lender. | J28: =IF(I28="YES",25,"0") -> 0 | K28: =J28 -> 0
A30: 14 | B30: HIP Eligibility requirements 25 CFR Part 256 effective after 12/10/15 | I30: Subtotal | K30: =IF(K12="Not Eligible","Not Eligible",SUM(K12+K14+K16+K18+K20+K22+K24+K26+K28)) -> 0
A32: 15 | B32: You are on the waiting list and have obtained a denial letter from the Local Housing Authority. | J32: =IF(I32="YES","Eligible",IF(I32="Pending","Eligible",IF(I32="No","Not Eligible",""))) ->  | K32: =J32 -> 
A34: 16 | B34: You have received prior Federal Housing Assistance from the Housing Improvement Program (HIP). | J34: =IF(I34="No","Eligible",IF(I34="Yes","Not Eligible","")) ->  | K34: =J34 -> 
A36: 17 | B36: You have received Federal Housing Assistance from NAHASDA after 1996. | J36: =IF(I36="No","Eligible",IF(I36="Yes","Not Eligible","")) ->  | K36: =J36 -> 
A38: 18 | G38: Eligibility Points | J38: =IF(K40="Not Eligible","0",SUM(K12+K14+K16+K18+K20+K22+K24+K26+K28)) -> 0 | K38: =J38 -> 0
A40: 19 | B40: N/A means "Not Eligible" for Housing Assistance under the BIA HIP program. | G40: Eligibility Status | J40: =IF(K30="Not Eligible","Not Eligible",IF(K32="Not Eligible","Not Eligible",IF(K34="Not Eligible","Not Eligible",IF(K36="Not Eligible","Not Eligible","Eligible")))) -> Eligible | K40: =J40 -> Eligible
A42: 20 | B42: If known, please provide an estimated start date to renovate or build new!
A43: 21 | B43: If known, please provide an estimated cost to renovate or build new!
A45: 22 | B45: Date of Evaluation: | C45: =IF(B10="","",NOW()) ->  | G45: See instructions on printing
A47: 23 | B47: Name of Evaluator: | C47: =IF(Profile!D10="","",Profile!D10) -> 
A49: 24 | B49: Contact Number: | C49: =IF(Profile!D12="","",Profile!D12) -> 
A51: PAPERWORK REDUCTION ACT STATEMENT This information is being collected to select eligible families or individuals to participate in the Housing Improvement Program. Response to this request is required to obtain a benefit in accordance with 25 CFR 256. You are not required to respond to this collection of information unless it displays a currently valid OMB control number. This information will be used to determine the eligibility and the ranking of the applicant. Public reporting burden for this form is estimated to average 1 hour per response, including the time for reviewing instructions, gathering and maintaining data, and completing and reviewing the form. Direct comments regarding the burden estimate or any other aspect of this form to Information Collection Clearance Officer – Indian Affairs, 1849 C Street, NW, MS-4141, Washington, DC 20240.
O55: A | P55: Sr | Q55: AVCP | R55: Association of Village Council Presidents | S55: ALASKA
O56: B | P56: Jr | Q56: ASNA | R56: Arctic Slope Native Association | S56: Native Village Of Akhiok
O57: C-1 | P57: III | Q57: BBNA | R57: Bristol Bay Native Association | S57: Akiachak Native Community
O58: C-2 | P58: IV | Q58: CITC | R58: Cook Inlet Tribal Council | S58: Akiak Native Community
O59: D | Q59: CCTH | R59: Central Council Tlingit and Haida | S59: Native Village Of Akutan
Q60: FNA | R60: Fairbanks Native Association | S60: Village Of Alakanuk
Q61: ICAS | R61: Inupiat Community of the Arctic Slope | S61: Allakaket Village
Q62: Kawerak | R62: Kawerak | S62: Alatna Village
Q63: Maniilaq | R63: Maniilaq | S63: Native Village Of Aleknagik
Q64: TCC | R64: Tanana Chiefs Conference | S64: Native Village Of Ambler
S65: Village Of Anaktuvuk Pass
Q66: Chinle | S66: Yupiit Of Andreafski
P67: Yes | Q67: Shiprock | S67: Village Of Aniak
P68: No | Q68: Western | S68: Arctic Village
Q69: 1 | R69: Homeless | S69: Native Village Of Atka
Q70: 2 | R70: Dilapidated | S70: Village Of Atmautluak
Q71: 3 | R71: Overcrowded | S71: Beaver Village
Q72: 4 | R72: Veteran | S72: Native Village Of Belkofski
S73: Orutsararmuit Native Village
S74: Village Of Bill Moore's Slough
S75: Birch Creek Tribe
S76: Native Village Of Brevig Mission
S77: Native Village Of Buckland
S78: Native Village Of Cantwell
P79: Yes | S79: Chalkyitsik Village
P80: Pending | S80: Village Of Chefornak
P81: No | S81: Chevak Native Village
S82: Chickaloon Native Village
S83: Native Village Of Chignik
S84: Native Village Of Chignik Lagoon
S85: Chignik Lake Village
S86: Cheesh-Na Tribe
S87: Native Village Of Chitna
S88: Chuloonawick Native Village
S89: Circle Native Community
S90: Village Of Clark's Point
S91: Pribilof Islands Aleut Communities
S92: Native Village Of Kluti-Kaah
S93: Native Village Of Council
S94: Craig Community Association
S95: Village Of Crooked Creek
S96: Native Village Of Deering
S97: Curyung Tribal Council
S98: Village Of Dot Lake
S99: Egegik Village
S100: Eklutna Native Village
S101: Native Village Of Ekuk
S102: Ekwok Village
S103: Native Village Of Elim
S104: Emmonak Village
S105: Native Village Of Nanwalek
S106: Evansville Village
S107: Native Village Of Eyak
S108: Native Village Of False Pass
S109: Native Village Of Fort Yukon
S110: Native Village Of Gakona
S111: Native Village Of Gambell
S112: Native Village Of Georgetown
S113: Chinik Eskimo Community
S114: Organized Village Of Grayling
S115: Gulkana Village
S116: Chilkoot Indian Association
S117: Native Village Of Hamilton
S118: Holy Cross Village
S119: Hoonah Indian Association
S120: Native Village Of Hooper Bay
S121: Hughes Village
S122: Huslia Village
S123: Hydaburg Cooperative Association
S124: Igiugig Village
S125: Village Of Iliamna
S126: Native Village Of Diomede
S127: Ivanoff Bay Village
S128: Organized Village Of Kake
S129: Kaktovik Village
S130: Village Of Kalskag
S131: Village Of Kaltag
S132: Native Village Of Karluk
S133: Organized Village Of Kasaan
S134: Native Village Of Kasigluk
S135: Kenaitze Indian Tribe
S136: Ketchikan Indian Corporation
S137: Native Village Of Kiana
S138: Agdaagux Tribe Of King Cove
S139: King Island Native Community
S140: Native Village Of Kipnuk
S141: Native Village Of Kivalina
S142: Klawock Cooperative Association
S143: Chilkat Indian Village
S144: Knik Village
S145: Native Village Of Kobuk
S146: Kokhanok Village
S147: New Koliganek Village Council
S148: Native Village Of Kongiganak
S149: Village Of Kotlik
S150: Native Village Of Kotzebue
S151: Native Village Of Koyuk
S152: Koyukuk Native Village
S153: Organized Village Of Kwethluk
S154: Native Village Of Kwigillingok
S155: Native Village Of Larsen Bay
S156: Levelock Village
S157: Lime Village
S158: Galena Village
S159: Village Of Lower Kalskag
S160: Manley Hot Springs Village
S161: Manokotak Village
S162: Native Village Of Marshall
S163: Native Village Of Mary's Igloo
S164: Mcgrath Native Village
S165: Native Village Of Mekoryuk
S166: Mentasta Traditional Council
S167: Native Village Of Minto
S168: Asa'carsarmiut Tribe
S169: Pauloff Harbor Village
S170: Native Village Of Goodnews Bay
S171: Native Village Of Naknek
S172: Native Village Of Napamite
S173: Native Village Of Napakiak
S174: Native Village Of Napaskiak
S175: Native Village Of Nelson Lagoon
S176: Nenana Native Association
S177: New Stuyahok Village
S178: Newhalen Village
S179: Newtok Village
S180: Native Village Of Nightmute
S181: Nikolai Village
S182: Native Village Of Nikolski
S183: Ninilchik Village
S184: Native Village Of Noatak
S185: Nome Eskimo Community
S186: Nondalton Village
S187: Native Village Of Nuiqsut
S188: Noorvik Native Community
S189: Northway Village
S190: Nulato Village
S191: Native Village Of Nunaptichuk
S192: Village Of Ohogamiut
S193: Village Of Old Harbor
S194: Oscarville Traditional Village
S195: Native Village Of Ouzinkie
S196: Native Village Of Paimut
S197: Pedro Bay Village
S198: Native Village Of Perryville
S199: Petersburg Indian Association
S200: Native Village Of Pilot Point
S201: Pilot Station Traditional Village
S202: Native Village Of Pitka's Point
S203: Platinum Traditional Village
S204: Native Village Of Point Hope
S205: Native Village Of Point Lay
S206: Native Village Of Port Graham
S207: Native Village Of Port Heiden
S208: Native Village Of Port Lions
S209: Portage Creek Village
S210: Native Village Of Kwinhagak
S211: Rampart Village
S212: Village Of Red Devil
S213: Native Village Of Ruby
S214: Iqurmuit Traditional Council
S215: Village Of Salamatoff
S216: Qagan Tayagungin Tribe Of Sand Point
S217: Native Village Of Savoonga
S218: Village Of Saxman
S219: Native Village Of Scammon Bay
S220: Native Village Of Selawik
S221: Seldovia Village Tribe
S222: Shageluk Native Village
S223: Native Village Of Shaktoolik
S224: Native Village Of Sheldon's Point
S225: Native Village Of Shismaref
... 402 more rows

Sheet PriorityListForm
A1: PRIVACY ACT STATEMENT 25 CFR 265 and 25 U.S.C. 13 authorize the collection of this information. This information is covered by the system of record notice “Indian Housing Improvement Program, Interior, BIA-10.” The primary use of this information is to determine eligibility for assistance under the Housing Improvement Program. The records contained therein may only be disclosed in accordance with the routine uses and may not otherwise be disclosed by any means of communication to any person, or to another agency, except pursuant to a written request by, or with prior written consent of the individual to whom the record pertains. If the BIA uses the information furnished on this form for purposes other than those indicated above, it may provide you with an additional statement reflecting those purposes. Executive Order 9397 authorizes the collection of your Social Security number. Furnishing the information is voluntary but failure to do so may result in disapproval of your application. | L1: PAPERWORK REDUCTION ACT STATEMENT This information is being collected to select eligible families or individuals to participate in the Housing Improvement Program. Response to this request is required to obtain a benefit in accordance with 25 CFR 256. You are not required to respond to this collection of information unless it displays a currently valid OMB control number. This information will be used to determine the eligibility and the ranking of the applicant. Public reporting burden for this form is estimated to average 1 hour per response, including the time for reviewing instructions, gathering and maintaining data, and completing and reviewing the form. Direct comments regarding the burden estimate or any other aspect of this form to Information Collection Clearance Officer – Indian Affairs, 1849 C Street, NW, MS-4141, Washington, DC 20240.
B2: Regional Office: | E2: =IF(Profile!D5="","",Profile!D5) -> WESTERN | G2: Number of Tribes Submitting Workplans: | O2: Number of Eligible Applicants: | U2: =IF(U2502="","",U2502) -> 3
B3: Fiscal Year: | E3: =IF(Profile!D9="","",Profile!D9) -> 2024 | G3: Number of Tribes In Region: | O3: Number of Applications Considered: | U3: =IF(V2502="","",V2502) -> 3
A5: HOUSING IMPROVEMENT PROGRAM PRIORITY RANKING LIST
B6: LAST NAME | C6: FIRST NAME | D6: Suffix | E6: Tribe/ District | F6: Cat | G6: Family size | H6: Income 1040 Form | I6: Income Pts | J6: Aged | K6: Disabled | L6: Dependent Children | M6: Homeless | N6: Dilapidated | O6: Overcrowded | P6: Veteran Points | Q6: Down Payment | R6: Denial Letter | S6: Prior HIP | T6: Prior NAHASDA | U6: Eligibility Status | V6: Total Points | W6: Date of Application
A7: 1 | B7: Doe | C7: Jane | E7: Yomba | F7: C-2 | G7: 3 | H7: 16500 | I7: 15 | J7: 0 | K7: 10 | L7: 3 | M7: 5 | N7: 0 | O7: 0 | P7: 0 | Q7: 0 | R7: Pending | S7: No | T7: No | U7: Eligible | V7: 33 | W7: 2022-12-02
A8: =A7+1 -> 2 | B8: Tester | C8: James | E8: Goshute Business Council | F8: C-2 | G8: 2 | H8: 26000 | I8: 0 | J8: 0 | K8: 0 | L8: 0 | M8: 0 | N8: 5 | O8: 0 | P8: 0 | Q8: 0 | R8: Pending | S8: No | T8: No | U8: Eligible | V8: 5 | W8: 2022-01-02
A9: =A8+1 -> 3 | B9: Sample | C9: Joe | E9: Quechen | F9: B | G9: 1 | H9: 11280 | I9: 10 | J9: 15 | K9: 10 | L9: 0 | M9: 0 | N9: 5 | O9: 0 | P9: 5 | Q9: 0 | R9: Pending | S9: No | T9: No | U9: Eligible | V9: 45 | W9: 2022-11-28
A10: 4
A11: 5
A12: 6
A13: 7
A14: 8
A15: 9
A16: 10
A17: 11
A18: 12
A19: 13
A20: 14
A21: 15
A22: 16
A23: 17
A24: 18
A25: 19
A26: 20
A27: 21
A28: 22
A29: 23
A30: 24
A31: 25
A32: 26
A33: 27
A34: 28
A35: 29
A36: 30
A37: 31
A38: 32
A39: 33
A40: 34
A41: 35
A42: 36
A43: 37
A44: 38
A45: 39
A46: 40
A47: 41
A48: 42
A49: 43
A50: 44
A51: 45
A52: 46
A53: 47
A54: 48
A55: 49
A56: 50
A57: 51
A58: 52
A59: 53
A60: 54
A61: 55
A62: 56
A63: 57
A64: 58
A65: 59
A66: 60
A67: 61
A68: 62
A69: 63
A70: 64
A71: 65
A72: 66
A73: =A72+1 -> 67
A74: 68
A75: 69
A76: 70
A77: 71
A78: 72
A79: 73
A80: 74
A81: 75
A82: 76
A83: 77
A84: 78
A85: 79
A86: 80
A87: 81
A88: 82
A89: 83
A90: 84
A91: 85
A92: 86
A93: 87
A94: 88
A95: 89
A96: 90
A97: 91
A98: 92
A99: 93
A100: 94
A101: 95
A102: 96
A103: 97
A104: 98
A105: 99
A106: 100
A107: 101
A108: 102
A109: 103
A110: 104
A111: 105
A112: 106
A113: 107
A114: 108
A115: 109
A116: 110
A117: 111
A118: 112
A119: 113
A120: 114
A121: 115
A122: 116
A123: 117
A124: 118
A125: 119
A126: 120
A127: 121
A128: 122
A129: 123
A130: 124
A131: 125
A132: 126
A133: 127
A134: 128
A135: 129
A136: 130
A137: =A136+1 -> 131
A138: 132
A139: 133
A140: 134
A141: 135
A142: 136
A143: 137
A144: 138
A145: 139
A146: 140
A147: 141
A148: 142
A149: 143
A150: 144
A151: 145
A152: 146
A153: 147
A154: 148
A155: 149
A156: 150
A157: 151
A158: 152
A159: 153
A160: 154
A161: 155
A162: 156
A163: 157
A164: 158
A165: 159
A166: 160
A167: 161
A168: 162
A169: 163
A170: 164
A171: 165
A172: 166
A173: 167
A174: 168
A175: 169
A176: 170
A177: 171
A178: 172
A179: 173
A180: 174
A181: 175
A182: 176
A183: 177
A184: 178
A185: 179
A186: 180
A187: 181
A188: 182
A189: 183
A190: 184
A191: 185
A192: 186
A193: 187
A194: 188
A195: 189
A196: 190
A197: 191
A198: 192
A199: 193
A200: 194
A201: =A200+1 -> 195
... 2300 more rows

Sheet TribePartI
A1: PRIVACY ACT STATEMENT 25 CFR 265 and 25 U.S.C. 13 authorize the collection of this information. This information is covered by the system of record notice “Indian Housing Improvement Program, Interior, BIA-10.” The primary use of this information is to determine eligibility for assistance under the Housing Improvement Program. The records contained therein may only be disclosed in accordance with the routine uses and may not otherwise be disclosed by any means of communication to any person, or to another agency, except pursuant to a written request by, or with prior written consent of the individual to whom the record pertains. If the BIA uses the information furnished on this form for purposes other than those indicated above, it may provide you with an additional statement reflecting those purposes. Executive Order 9397 authorizes the collection of your Social Security number. Furnishing the information is voluntary but failure to do so may result in disapproval of your application.
A5: PAPERWORK REDUCTION ACT STATEMENT This information is being collected to select eligible families or individuals to participate in the Housing Improvement Program. Response to this request is required to obtain a benefit in accordance with 25 CFR 256. You are not required to respond to this collection of information unless it displays a currently valid OMB control number. This information will be used to determine the eligibility and the ranking of the applicant. Public reporting burden for this form is estimated to average 1 hour per response, including the time for reviewing instructions, gathering and maintaining data, and completing and reviewing the form. Direct comments regarding the burden estimate or any other aspect of this form to Information Collection Clearance Officer – Indian Affairs, 1849 C Street, NW, MS-4141, Washington, DC 20240.
A9: PART I - TRIBAL WORK PLAN | L9: Date: | N9: =IF(Profile!D17=0,"",Profile!D17) -> 
A10: 1 | B10: Work Plan for Fiscal Year: | E10: =IF(Profile!D9="","",Profile!D9) -> 2024 | K10: Name: | L10: =IF(Profile!D10=0,"",Profile!D10) -> 
A11: 2 | B11: Name of Tribe / Consortium: | E11: =IF(Profile!D6="","",Profile!D6) -> Quechen | K11: Title: | L11: =IF(Profile!D11=0,"",Profile!D11) -> 
A12: 3 | B12: Number of Eligible Applicants: | E12: =IF(M2521=0,"",M2521) -> 3 | K12: Phone: | L12: =IF(Profile!D12=0,"",Profile!D12) -> 
A13: 4 | B13: Number of Applications Received: | E13: =IF(N2521=0,"",N2521) -> 3 | K13: Fax: | L13: =IF(Profile!D13=0,"",Profile!D13) -> 
B14: See instructions for printing form
A15: 5. Name of Eligible Applicant (ranked in order of need) | E15: 6. Applicant's Servicing Tribe | F15: 7. Program Category (Enter One As Applicable) | K15: 8a. Estimated Start Date | L15: 8b. Estimated Project Costs 25 CFR 256.17(b))** | M15: Eligibility Status | N15: 8c. Priority Ranking Points (ranked in order from highest to lowest)
B17: Last | C17: First | D17: Suffix | F17: (A) | G17: (B) | H17: (C-1) | I17: (C-2) | J17: (D)
A18: 1 | B18: Doe | C18: Jane | I18: C-2 | M18: Eligible | N18: 33
A19: =A18+1 -> 2 | B19: Tester | C19: James | I19: C-2 | M19: Eligible | N19: 5
A20: =A19+1 -> 3 | B20: Sample | C20: Joe | G20: B | M20: Eligible | N20: 45
A21: 4
A22: 5
A23: 6
A24: 7
A25: 8
A26: 9
A27: 10
A28: 11
A29: 12
A30: 13
A31: 14
A32: 15
A33: 16
A34: 17
A35: 18
A36: 19
A37: 20
A38: 21
A39: 22
A40: 23
A41: 24
A42: 25
A43: 26
A44: 27
A45: 28
A46: 29
A47: 30
A48: 31
A49: 32
A50: 33
A51: 34
A52: 35
A53: 36
A54: 37
A55: 38
A56: 39
A57: 40
A58: 41
A59: 42
A60: 43
A61: 44
A62: 45
A63: 46
A64: 47
A65: 48
A66: 49
A67: 50
A68: 51
A69: 52
A70: 53
A71: 54
A72: 55
A73: 56
A74: 57
A75: 58
A76: 59
A77: 60
A78: 61
A79: 62
A80: 63
A81: 64
A82: 65
A83: 66
A84: =A83+1 -> 67
A85: 68
A86: 69
A87: 70
A88: 71
A89: 72
A90: 73
A91: 74
A92: 75
A93: 76
A94: 77
A95: 78
A96: 79
A97: 80
A98: 81
A99: 82
A100: 83
A101: 84
A102: 85
A103: 86
A104: 87
A105: 88
A106: 89
A107: 90
A108: 91
A109: 92
A110: 93
A111: 94
A112: 95
A113: 96
A114: 97
A115: 98
A116: 99
A117: 100
A118: 101
A119: 102
A120: 103
A121: 104
A122: 105
A123: 106
A124: 107
A125: 108
A126: 109
A127: 110
A128: 111
A129: 112
A130: 113
A131: 114
A132: 115
A133: 116
A134: 117
A135: 118
A136: 119
A137: 120
A138: 121
A139: 122
A140: 123
A141: 124
A142: 125
A143: 126
A144: 127
A145: 128
A146: 129
A147: 130
A148: =A147+1 -> 131
A149: 132
A150: 133
A151: 134
A152: 135
A153: 136
A154: 137
A155: 138
A156: 139
A157: 140
A158: 141
A159: 142
A160: 143
A161: 144
A162: 145
A163: 146
A164: 147
A165: 148
A166: 149
A167: 150
A168: 151
A169: 152
A170: 153
A171: 154
A172: 155
A173: 156
A174: 157
A175: 158
A176: 159
A177: 160
A178: 161
A179: 162
A180: 163
A181: 164
A182: 165
A183: 166
A184: 167
A185: 168
A186: 169
A187: 170
A188: 171
A189: 172
A190: 173
A191: 174
A192: 175
A193: 176
A194: 177
A195: 178
A196: 179
A197: 180
A198: 181
A199: 182
A200: 183
A201: 184
A202: 185
A203: 186
A204: 187
A205: 188
A206: 189
A207: 190
... 2315 more rows

Sheet Tribe Part II
A1: PART II - REPORT OF ACCOMPLISHMENTS
A2: 1 | B2: a. Number of Applicants Provided Service: | F2: =IF(B54=0,"",B54) ->  | K2: Name of Tribe / Consortium
B3: b. Number of Projects Completed within Fiscal Year: | F3: =IF(K54=0,"",K54) ->  | K3: =IF(Profile!D6=0,"",Profile!D6) -> Quechen
A4: 2 | B4: a. Amount of Total Administration Funds to Report: | F4: =IF(L54=0,"",L54) ->  | K4: REGION | M4: =IF(Profile!D5=0,"",Profile!D5) -> WESTERN
B5: b. Amount of Total Constuction Funds to Report: | F5: =IF(M54=0,"",M54) ->  | K5: AGENCY | M5: =IF(Profile!D8="","",Profile!D8) -> 
B6: c. Amount of Total HIP Funds to Report: | F6: =IF(N54=0,"",N54) ->  | K6: FISCAL YEAR | M6: =IF(Profile!D9=0,"",Profile!D9) -> 2024
B7: Type or Printed Name | D7: =IF(Profile!D10=0,"",Profile!D10) ->  | E7: Title | F7: =IF(Profile!D11=0,"",Profile!D11) -> 
B8: Telephone | D8: =IF(Profile!D12=0,"",Profile!D12) ->  | E8: Fax | F8: =IF(Profile!D13=0,"",Profile!D13) -> 
A9: 3 | B9: Name of Applicant Provided Program Services | D9: 4. Applicant's Servicing Tribe | E9: 5. Program Category (Enter one, as applicable) | J9: 6. Construction Schedules | L9: 7. Construction Funds
B11: Last | C11: First | E11: (A) | F11: (B) | G11: (C-1) | H11: (C-2) | I11: (D) | J11: a.Date of Construction Start | K11: b.Date of Construction Completion | L11: a. Admin cost | M11: b. Project cost | N11: c.Sum of 7(a) & 7(b)
A12: 1 | N12: =IF(SUM(L12:M12)=0,"",SUM(L12:M12)) -> 
A13: =A12+1 -> 2 | N13: =IF(SUM(L13:M13)=0,"",SUM(L13:M13)) -> 
A14: 3
A15: 4
A16: 5
A17: 6
A18: 7
A19: 8
A20: 9
A21: 10
A22: 11
A23: 12
A24: 13
A25: 14
A26: 15
A27: 16
A28: 17
A29: 18
A30: 19
A31: 20
A32: 21
A33: 22
A34: 23
A35: 24
A36: 25
A37: 26
A38: 27
A39: 28
A40: 29
A41: 30
A42: 31
A43: 32
A44: 33
A45: 34
A46: 35
A47: 36
A48: 37
A49: 38
A50: 39
A51: 40
A52: 41
A53: 42
B54: =COUNTA(B12:B53) -> 0 | E54: =SUM(E12:E53) -> 0 | F54: =SUM(F12:F53) -> 0 | G54: =SUM(G12:G53) -> 0 | H54: =SUM(H12:H53) -> 0 | K54: =COUNTA(K12:K53) -> 0 | L54: =SUM(L12:L53) -> 0 | M54: =SUM(M12:M53) -> 0 | N54: =SUM(N12:N53) -> 0
H55: =SUM(E54:H54) -> 0
A56: PRIVACY ACT STATEMENT 25 CFR 265 and 25 U.S.C. 13 authorize the collection of this information. This information is covered by the system of record notice “Indian Housing Improvement Program, Interior, BIA-10.” The primary use of this information is to determine eligibility for assistance under the Housing Improvement Program. The records contained therein may only be disclosed in accordance with the routine uses and may not otherwise be disclosed by any means of communication to any person, or to another agency, except pursuant to a written request by, or with prior written consent of the individual to whom the record pertains. If the BIA uses the information furnished on this form for purposes other than those indicated above, it may provide you with an additional statement reflecting those purposes. Executive Order 9397 authorizes the collection of your Social Security number. Furnishing the information is voluntary but failure to do so may result in disapproval of your application.
A62: PAPERWORK REDUCTION ACT STATEMENT This information is being collected to select eligible families or individuals to participate in the Housing Improvement Program. Response to this request is required to obtain a benefit in accordance with 25 CFR 256. You are not required to respond to this collection of information unless it displays a currently valid OMB control number. This information will be used to determine the eligibility and the ranking of the applicant. Public reporting burden for this form is estimated to average 1 hour per response, including the time for reviewing instructions, gathering and maintaining data, and completing and reviewing the form. Direct comments regarding the burden estimate or any other aspect of this form to Information Collection Clearance Officer – Indian Affairs, 1849 C Street, NW, MS-4141, Washington, DC 20240.

Sheet 150 Per Cent
A1: FACTOR NO. 1 - HIP ELIGIBILITY/SELECTION CRITERIA @ 150%
A2: INCOME GUIDELINE POINT SCHEDULE FOR ALL STATES EXCEPT ALASKA & HAWAII
A3: FAMILY SIZE | B3: 0% to 25% of PG 25 POINTS | E3: 26% to 50% of PG 20 POINTS | H3: 51% to 75% of PG 15 POINTS | K3: 76% to 100 of PG 10 POINTS | N3: 101% to 125% of PG 5 POINTS | Q3: 125% to 150% of PG 0 POINTS | T3: OVER 150% of FPIG INELIGIBLE
A5: 1 | B5: 0 | C5: TO | D5: 3397.5 | E5: =D5+1 -> 3398.5 | F5: TO | G5: =G18 -> 7290 | H5: =G5+1 -> 7291 | I5: TO | J5: =J18 -> 10935 | K5: =J5+1 -> 10936 | L5: TO | M5: =M18 -> 14580 | N5: =M5+1 -> 14581 | O5: TO | P5: =P18 -> 18225 | Q5: =P5+1 -> 18226 | R5: TO | S5: =S18 -> 21870 | T5: =S5+1 -> 21871 | U5: & HIGHER
A6: 2 | B6: 0 | C6: TO | D6: 4532.5 | E6: 4533.5 | F6: TO | G6: =G5+G$17 -> 9860 | H6: 9861 | I6: TO | J6: =J5+J$17 -> 14790 | K6: 14791 | L6: TO | M6: =M5+M$17 -> 19720 | N6: 19721 | O6: TO | P6: =P5+P$17 -> 24650 | Q6: 24651 | R6: TO | S6: =S5+S$17 -> 29580 | T6: 29581 | U6: & HIGHER
A7: 3 | B7: 0 | C7: TO | D7: =D6+D$17 -> 5817.5 | E7: 5818.5 | F7: TO | G7: =G6+G$17 -> 12430 | H7: 12431 | I7: TO | J7: 18645 | K7: 18646 | L7: TO | M7: =M6+M$17 -> 24860 | N7: 24861 | O7: TO | P7: 31075 | Q7: 31076 | R7: TO | S7: 37290 | T7: 37291 | U7: & HIGHER
A8: 4 | B8: 0 | C8: TO | D8: 7102.5 | E8: 7103.5 | F8: TO | G8: 15000 | H8: 15001 | I8: TO | J8: 22500 | K8: 22501 | L8: TO | M8: =M7+M$17 -> 30000 | N8: 30001 | O8: TO | P8: 37500 | Q8: 37501 | R8: TO | S8: 45000 | T8: 45001 | U8: & HIGHER
A9: 5 | B9: 0 | C9: TO | D9: 8387.5 | E9: 8388.5 | F9: TO | G9: 17570 | H9: 17571 | I9: TO | J9: 26355 | K9: 26356 | L9: TO | M9: =M8+M$17 -> 35140 | N9: 35141 | O9: TO | P9: 43925 | Q9: 43926 | R9: TO | S9: 52710 | T9: 52711 | U9: & HIGHER
A10: 6 | B10: 0 | C10: TO | D10: 9672.5 | E10: 9673.5 | F10: TO | G10: 20140 | H10: 20141 | I10: TO | J10: 30210 | K10: 30211 | L10: TO | M10: =M9+M17 -> 40280 | N10: 40281 | O10: TO | P10: 50350 | Q10: 50351 | R10: TO | S10: 60420 | T10: 60421 | U10: & HIGHER
A11: 7 | B11: 0 | C11: TO | D11: 10957.5 | E11: 10958.5 | F11: TO | G11: 22710 | H11: 22711 | I11: TO | J11: 34065 | K11: 34066 | L11: TO | M11: =M10+M$17 -> 45420 | N11: 45421 | O11: TO | P11: 56775 | Q11: 56776 | R11: TO | S11: 68130 | T11: 68131 | U11: & HIGHER
A12: 8 | B12: 0 | C12: TO | D12: 12242.5 | E12: 12243.5 | F12: TO | G12: 25280 | H12: 25281 | I12: TO | J12: 37920 | K12: 37921 | L12: TO | M12: =M11+M$17 -> 50560 | N12: 50561 | O12: TO | P12: 63200 | Q12: 63201 | R12: TO | S12: 75840 | T12: 75841 | U12: & HIGHER
A13: 9 | B13: 0 | C13: TO | D13: 13527.5 | E13: 13528.5 | F13: TO | G13: 27850 | H13: 27851 | I13: TO | J13: 41775 | K13: 41776 | L13: TO | M13: =M12+M$17 -> 55700 | N13: 55701 | O13: TO | P13: 69625 | Q13: 69626 | R13: TO | S13: 83550 | T13: 83551 | U13: & HIGHER
A14: 10 | B14: 0 | C14: TO | D14: 14812.5 | E14: 14813.5 | F14: TO | G14: 30420 | H14: 30421 | I14: TO | J14: 45630 | K14: 45631 | L14: TO | M14: =M13+M$17 -> 60840 | N14: 60841 | O14: TO | P14: 76050 | Q14: 76051 | R14: TO | S14: 91260 | T14: 91261 | U14: & HIGHER
A15: 11 | B15: 0 | C15: TO | D15: 16097.5 | E15: 16098.5 | F15: TO | G15: 32990 | H15: 32991 | I15: TO | J15: 49485 | K15: 49486 | L15: TO | M15: =M14+M$17 -> 65980 | N15: 65981 | O15: TO | P15: 82475 | Q15: 82476 | R15: TO | S15: 98970 | T15: 98971 | U15: & HIGHER
A16: 12 | B16: 0 | C16: TO | D16: 17382.5 | E16: 17383.5 | F16: TO | G16: 35560 | H16: =G16+1 -> 35561 | I16: TO | J16: 53340 | K16: 53341 | L16: TO | M16: =M15+M17 -> 71120 | N16: 71121 | O16: TO | P16: 88900 | Q16: 88901 | R16: TO | S16: 106680 | T16: 106681 | U16: & HIGHER
A17: EACH PERSON OVER 12 ADD | D17: =$M19*0.25 -> 1285 | G17: =$M$19*0.5 -> 2570 | J17: =$M$19*0.75 -> 3855 | M17: =$M$19*1 -> 5140 | P17: =$M$19*1.25 -> 6425 | S17: =$M$19*1.5 -> 7710 | T17: =S17+1 -> 7711 | U17: & HIGHER
B18: 25%= | D18: =$M$18*0.25 -> 3645 | E18: 50%= | G18: =$M$18*0.5 -> 7290 | H18: '75%= | J18: =$M$18*0.75 -> 10935 | K18: 100%= | M18: 14580 | N18: 125%= | P18: =$M$18*1.25 -> 18225 | Q18: 150% = | S18: =$M18*1.5 -> 21870 | U18: =R18*1.25 -> 0
B19: @ Add'l: | D19: =J19*0.25 -> 963.75 | E19: @ Add'l: | G19: =M19*0.5 -> 2570 | H19: @ Add'l: | J19: =M19*0.75 -> 3855 | K19: @ Add'l: | M19: 5140 | N19: @ Add'l: | P19: =$M19*1.25 -> 6425 | Q19: @ Add'l: | S19: =M19*1.5 -> 7710 | U19: =R19*1.25 -> 0
A20: PG = | B20: HHS Poverty Guidelines
A24: FACTOR NO. 1 - HIP ELIGIBILITY/SELECTION CRITERIA @ 150%
A25: INCOME GUIDELINE POINT SCHEDULE FOR ALASKA
A26: FAMILY SIZE | B26: 0% to 25% of PG 25 POINTS | E26: 26% to 50% of PG 20 POINTS | H26: 51% to 75% of PG 15 POINTS | K26: 76% to 100 of PG 10 POINTS | N26: 101% to 125% of PG 5 POINTS | Q26: 126% to 150% of PG 0 POINTS | T26: OVER 150% of FPIG INELIGIBLE
A28: 1 | B28: 0 | C28: TO | D28: =D41 -> 4552.5 | E28: =D28+1 -> 4553.5 | F28: TO | G28: =G41 -> 9105 | H28: =G28+1 -> 9106 | I28: TO | J28: =J41 -> 13657.5 | K28: =J28+1 -> 13658.5 | L28: TO | M28: =M41 -> 18210 | N28: =M28+1 -> 18211 | O28: TO | P28: =P41 -> 22762.5 | Q28: =P28+1 -> 22763.5 | R28: TO | S28: =S41 -> 27315 | T28: =S28+1 -> 27316 | U28: & HIGHER
A29: 2 | B29: 0 | C29: TO | D29: =D28+D$40 -> 6160 | E29: 6161 | F29: TO | G29: =G28+G$40 -> 12320 | H29: 12321 | I29: TO | J29: =J28+J$40 -> 18480 | K29: 18481 | L29: TO | M29: =M28+M$40 -> 24640 | N29: 24641 | O29: TO | P29: =P28+P$40 -> 30800 | Q29: 30801 | R29: TO | S29: =S28+S$40 -> 36960 | T29: 36961 | U29: & HIGHER
A30: 3 | B30: 0 | C30: TO | D30: 7767.5 | E30: 7768.5 | F30: TO | G30: 15535 | H30: 15536 | I30: TO | J30: 23302.5 | K30: 23303.5 | L30: TO | M30: 31070 | N30: 31071 | O30: TO | P30: 38837.5 | Q30: 38838.5 | R30: TO | S30: 46605 | T30: 46606 | U30: & HIGHER
A31: 4 | B31: 0 | C31: TO | D31: 9375 | E31: 9376 | F31: TO | G31: 18750 | H31: 18751 | I31: TO | J31: 28125 | K31: 28126 | L31: TO | M31: 37500 | N31: 37501 | O31: TO | P31: 46875 | Q31: 46876 | R31: TO | S31: 56250 | T31: 56251 | U31: & HIGHER
A32: 5 | B32: 0 | C32: TO | D32: 10982.5 | E32: 10983.5 | F32: TO | G32: 21965 | H32: 21966 | I32: TO | J32: 32947.5 | K32: 32948.5 | L32: TO | M32: 43930 | N32: 43931 | O32: TO | P32: 54912.5 | Q32: 54913.5 | R32: TO | S32: 65895 | T32: 65896 | U32: & HIGHER
A33: 6 | B33: 0 | C33: TO | D33: 12590 | E33: 12591 | F33: TO | G33: 25180 | H33: 25181 | I33: TO | J33: 37770 | K33: 37771 | L33: TO | M33: 50360 | N33: 50361 | O33: TO | P33: 62950 | Q33: 62951 | R33: TO | S33: 75540 | T33: 75541 | U33: & HIGHER
A34: 7 | B34: 0 | C34: TO | D34: 14197.5 | E34: 14198.5 | F34: TO | G34: 28395 | H34: 28396 | I34: TO | J34: 42592.5 | K34: 42593.5 | L34: TO | M34: 56790 | N34: 56791 | O34: TO | P34: 70987.5 | Q34: 70988.5 | R34: TO | S34: 85185 | T34: 85186 | U34: & HIGHER
A35: 8 | B35: 0 | C35: TO | D35: 15805 | E35: 15806 | F35: TO | G35: 31610 | H35: 31611 | I35: TO | J35: 47415 | K35: 47416 | L35: TO | M35: 63220 | N35: 63221 | O35: TO | P35: 79025 | Q35: 79026 | R35: TO | S35: 94830 | T35: 94831 | U35: & HIGHER
A36: 9 | B36: 0 | C36: TO | D36: 17412.5 | E36: 17413.5 | F36: TO | G36: 34825 | H36: 34826 | I36: TO | J36: 52237.5 | K36: 52238.5 | L36: TO | M36: 69650 | N36: 69651 | O36: TO | P36: 87062.5 | Q36: 87063.5 | R36: TO | S36: 104475 | T36: 104476 | U36: & HIGHER
A37: 10 | B37: 0 | C37: TO | D37: 19020 | E37: 19021 | F37: TO | G37: 38040 | H37: 38041 | I37: TO | J37: 57060 | K37: 57061 | L37: TO | M37: 76080 | N37: 76081 | O37: TO | P37: 95100 | Q37: 95101 | R37: TO | S37: 114120 | T37: 114121 | U37: & HIGHER
A38: 11 | B38: 0 | C38: TO | D38: 20627.5 | E38: 20628.5 | F38: TO | G38: 41255 | H38: 41256 | I38: TO | J38: 61882.5 | K38: 61883.5 | L38: TO | M38: 82510 | N38: 82511 | O38: TO | P38: 103137.5 | Q38: 103138.5 | R38: TO | S38: 123765 | T38: 123766 | U38: & HIGHER
A39: 12 | B39: 0 | C39: TO | D39: 22235 | E39: 22236 | F39: TO | G39: 44470 | H39: 44471 | I39: TO | J39: 66705 | K39: 66706 | L39: TO | M39: 88940 | N39: 88941 | O39: TO | P39: 111175 | Q39: 111176 | R39: TO | S39: 133410 | T39: 133411 | U39: & HIGHER
A40: EACH PERSON OVER 12 ADD | D40: =D42 -> 1607.5 | G40: =G42 -> 3215 | J40: =J42 -> 4822.5 | M40: =M42 -> 6430 | P40: =P42 -> 8037.5 | S40: =S42 -> 9645 | T40: 9646 | U40: & HIGHER
B41: 25%= | D41: =$M$41*0.25 -> 4552.5 | E41: 50%= | G41: =$M$41*0.5 -> 9105 | H41: '75%= | J41: =$M$41*0.75 -> 13657.5 | K41: 100%= | M41: 18210 | N41: 125%= | P41: =$M$41*1.25 -> 22762.5 | Q41: 150% = | S41: =$M41*1.5 -> 27315 | U41: =R41*1.25 -> 0
B42: @ Add'l: | D42: =M42*0.25 -> 1607.5 | E42: @ Add'l: | G42: =M42*0.5 -> 3215 | H42: @ Add'l: | J42: =M42*0.75 -> 4822.5 | K42: @ Add'l: | M42: 6430 | N42: @ Add'l: | P42: =$M42*1.25 -> 8037.5 | Q42: @ Add'l: | S42: =M42*1.5 -> 9645 | U42: =R42*1.25 -> 0
A43: PG = | B43: HHS Poverty Guidelines

Sheet FPIG13 (hidden)
A1: FACTOR NO. 1 - HIP ELIGIBILITY/SELECTION CRITERIA @ 150%
A2: INCOME GUIDELINE POINT SCHEDULE FOR ALASKA
A3: FAMILY SIZE | B3: 0% to 25% of PG 40 POINTS | E3: 26% to 50% of PG 30 POINTS | H3: 51% to 75% of PG 20 POINTS | K3: 76% to 100% of PG 10 POINTS | N3: 101% to 125% of PG 0 POINTS | Q3: OVER 125% of FPIG INELIGIBLE
A5: 1 | B5: 0 | C5: TO | D5: =$D$18 -> 3587.5 | E5: =D5+1 -> 3588.5 | F5: TO | G5: =G18 -> 6985 | H5: =G5+1 -> 6986 | I5: TO | J5: =J18 -> 10478 | K5: =J5+1 -> 10479 | L5: TO | M5: =M18 -> 14350 | N5: =M5+1 -> 14351 | O5: TO | P5: =P18 -> 17463 | Q5: =P5+1 -> 17464 | R5: & HIGHER
A6: 2 | B6: 0 | C6: TO | D6: =D5+B$17 -> 4845 | E6: 4846 | F6: TO | G6: =G5+E$17 -> 9500 | H6: 9501 | I6: TO | J6: 14191 | K6: 14192 | L6: TO | M6: =M5+K$17 -> 19380 | N6: 19381 | O6: TO | P6: 23651 | Q6: 23652 | R6: & HIGHER
A7: 3 | B7: 0 | C7: TO | D7: =D6+B$17 -> 6102.5 | E7: 6103.5 | F7: TO | G7: 12015 | H7: 12016 | I7: TO | J7: =J6+H$17 -> 17963.5 | K7: 17964.5 | L7: TO | M7: 24410 | N7: 24411 | O7: TO | P7: 29839 | Q7: =P7+1 -> 29840 | R7: & HIGHER
A8: 4 | B8: 0 | C8: TO | D8: =D7+B$17 -> 7360 | E8: 7361 | F8: TO | G8: 14530 | H8: 14531 | I8: TO | J8: 21617 | K8: 21618 | L8: TO | M8: 29440 | N8: 29441 | O8: TO | P8: =P7+N$17 -> 36126.5 | Q8: =P8+1 -> 36127.5 | R8: & HIGHER
A9: 5 | B9: 0 | C9: TO | D9: 8617.5 | E9: 8618.5 | F9: TO | G9: 17045 | H9: 17046 | I9: TO | J9: 25389.5 | K9: 25390.5 | L9: TO | M9: 34470 | N9: 34471 | O9: TO | P9: 42215 | Q9: 42216 | R9: & HIGHER
A10: 6 | B10: 0 | C10: TO | D10: =D9+B$17 -> 9875 | E10: 9876 | F10: TO | G10: 19560 | H10: 19561 | I10: TO | J10: 29043 | K10: 29044 | L10: TO | M10: 39500 | N10: 39501 | O10: TO | P10: 48403 | Q10: 48404 | R10: & HIGHER
A11: 7 | B11: 0 | C11: TO | D11: 11132.5 | E11: 11133.5 | F11: TO | G11: 22075 | H11: 22076 | I11: TO | J11: 32815.5 | K11: 32816.5 | L11: TO | M11: 44530 | N11: 44531 | O11: TO | P11: 54591 | Q11: 54592 | R11: & HIGHER
A12: 8 | B12: 0 | C12: TO | D12: =D11+B$17 -> 12390 | E12: 12391 | F12: TO | G12: 24590 | H12: 24591 | I12: TO | J12: 36469 | K12: 36470 | L12: TO | M12: 49560 | N12: 49561 | O12: TO | P12: 60779 | Q12: 60780 | R12: & HIGHER
A13: 9 | B13: 0 | C13: TO | D13: 13647.5 | E13: 13648.5 | F13: TO | G13: 27105 | H13: 27106 | I13: TO | J13: 40241.5 | K13: 40242.5 | L13: TO | M13: 54590 | N13: 54591 | O13: TO | P13: 66967 | Q13: 66968 | R13: & HIGHER
A14: 10 | B14: 0 | C14: TO | D14: =D13+B$17 -> 14905 | E14: 14906 | F14: TO | G14: 29620 | H14: 29621 | I14: TO | J14: 43895 | K14: 43896 | L14: TO | M14: 59620 | N14: 59621 | O14: TO | P14: 73155 | Q14: 73156 | R14: & HIGHER
A15: 11 | B15: 0 | C15: TO | D15: 16162.5 | E15: 16163.5 | F15: TO | G15: 32135 | H15: 32136 | I15: TO | J15: 47667.5 | K15: 47668.5 | L15: TO | M15: 64650 | N15: 64651 | O15: TO | P15: =P14+N$17 -> 79442.5 | Q15: 79443.5 | R15: & HIGHER
A16: 12 | B16: 0 | C16: TO | D16: =D15+B$17 -> 17420 | E16: 13251 | F16: TO | G16: 34650 | H16: 34651 | I16: TO | J16: 51321 | K16: 51322 | L16: TO | M16: 69680 | N16: 69681 | O16: TO | P16: 85531 | Q16: 85532 | R16: & HIGHER
A17: EACH PERSON OVER 12 ADD | B17: =D19 -> 1257.5 | E17: =G19 -> 2515 | H17: =J19 -> 3772.5 | K17: =M19 -> 5030 | N17: =P19 -> 6287.5 | Q17: =N17+1 -> 6288.5 | R17: & HIGHER
A18: 2013 PG: | B18: 25%= | D18: =$M$18*0.25 -> 3587.5 | E18: 50%= | G18: 6985 | H18: 75%= | J18: 10478 | K18: 100%= | M18: 14350 | N18: 125% = | P18: 17463
B19: @ Add'l: | D19: =M19*0.25 -> 1257.5 | E19: @ Add'l: | G19: =M19*0.5 -> 2515 | H19: @ Add'l: | J19: =M19*0.75 -> 3772.5 | K19: @ Add'l: | M19: 5030 | P19: =M19*1.25 -> 6287.5
A20: PG = | B20: HHS Poverty Guidelines
A21: FACTOR NO. 1 - HIP ELIGIBILITY/SELECTION CRITERIA @ 150%
A22: INCOME GUIDELINE POINT SCHEDULE FOR ALL STATES EXCEPT ALASKA
A23: FAMILY SIZE | B23: 0% to 25% of FPIG 40 POINTS | E23: 26% to 50% of FPIG 30 POINTS | H23: 51% to 75% of FPIG 20 POINTS | K23: 76% to 100% of FPIG 10 POINTS | N23: 101% to 125% of FPIG 0 POINTS | Q23: OVER 125% of FPIG INELIGIBLE
A25: 1 | B25: 0 | C25: TO | D25: =D38 -> 2793 | E25: =D25+1 -> 2794 | F25: TO | G25: =G38 -> 5585 | H25: =G25+1 -> 5586 | I25: TO | J25: =J38 -> 8378 | K25: =J25+1 -> 8379 | L25: TO | M25: =M38 -> 11490 | N25: =M25+1 -> 11491 | O25: TO | P25: =P38 -> 13963 | Q25: =P25+1 -> 13964 | R25: & HIGHER
A26: 2 | B26: 0 | C26: TO | D26: =D25+D$37 -> 3798 | E26: 3799 | F26: TO | G26: =G25+G$37 -> 7595 | H26: 7596 | I26: TO | J26: =J25+J$37 -> 11393 | K26: 11394 | L26: TO | M26: =M25+M$37 -> 15510 | N26: 15511 | O26: TO | P26: =P25+P$37 -> 18988 | Q26: 18989 | R26: & HIGHER
A27: 3 | B27: 0 | C27: TO | D27: 4803 | E27: 4804 | F27: TO | G27: 9605 | H27: 9606 | I27: TO | J27: 14408 | K27: 14409 | L27: TO | M27: 19530 | N27: 19531 | O27: TO | P27: 24013 | Q27: 24014 | R27: & HIGHER
A28: 4 | B28: 0 | C28: TO | D28: 5808 | E28: 5809 | F28: TO | G28: 11615 | H28: 11616 | I28: TO | J28: 17423 | K28: 17424 | L28: TO | M28: 23550 | N28: 23551 | O28: TO | P28: 29038 | Q28: 29039 | R28: & HIGHER
A29: 5 | B29: 0 | C29: TO | D29: 6813 | E29: 6814 | F29: TO | G29: 13625 | H29: 13626 | I29: TO | J29: 20438 | K29: 20439 | L29: TO | M29: 27570 | N29: 27571 | O29: TO | P29: 34063 | Q29: 34064 | R29: & HIGHER
A30: 6 | B30: 0 | C30: TO | D30: 7818 | E30: 7819 | F30: TO | G30: 15635 | H30: 15636 | I30: TO | J30: 23453 | K30: 23454 | L30: TO | M30: 31590 | N30: 31591 | O30: TO | P30: 39088 | Q30: 39089 | R30: & HIGHER
A31: 7 | B31: 0 | C31: TO | D31: 8823 | E31: 8824 | F31: TO | G31: 17645 | H31: 17646 | I31: TO | J31: 26468 | K31: 26469 | L31: TO | M31: 35610 | N31: 35611 | O31: TO | P31: 44113 | Q31: 44114 | R31: & HIGHER
A32: 8 | B32: 0 | C32: TO | D32: 9828 | E32: 9829 | F32: TO | G32: 19655 | H32: 19656 | I32: TO | J32: 29483 | K32: 29484 | L32: TO | M32: 39630 | N32: 39631 | O32: TO | P32: 49138 | Q32: 49139 | R32: & HIGHER
A33: 9 | B33: 0 | C33: TO | D33: 10833 | E33: 10834 | F33: TO | G33: 21665 | H33: 21666 | I33: TO | J33: 32498 | K33: 32499 | L33: TO | M33: 43650 | N33: 43651 | O33: TO | P33: 54163 | Q33: 54164 | R33: & HIGHER
A34: 10 | B34: 0 | C34: TO | D34: 11838 | E34: 11839 | F34: TO | G34: 23675 | H34: 23676 | I34: TO | J34: 35513 | K34: 35514 | L34: TO | M34: 47670 | N34: 47671 | O34: TO | P34: 59188 | Q34: 59189 | R34: & HIGHER
A35: 11 | B35: 0 | C35: TO | D35: 12843 | E35: 12844 | F35: TO | G35: 25685 | H35: 25686 | I35: TO | J35: 38528 | K35: 38529 | L35: TO | M35: 51690 | N35: 51691 | O35: TO | P35: 64213 | Q35: 64214 | R35: & HIGHER
A36: 12 | B36: 0 | C36: TO | D36: 13848 | E36: 13849 | F36: TO | G36: 27695 | H36: 27696 | I36: TO | J36: 41543 | K36: 41544 | L36: TO | M36: 55710 | N36: 55711 | O36: TO | P36: 69238 | Q36: 69239 | R36: & HIGHER
A37: EACH PERSON OVER 12 ADD | D37: =D39 -> 1005 | G37: =G39 -> 2010 | J37: =J39 -> 3015 | M37: =M39 -> 4020 | P37: =P39 -> 5025 | Q37: 5026 | R37: & HIGHER
A38: 2013 PG: | B38: @ 25% = | D38: 2793 | E38: @ 50% = | G38: 5585 | H38: @ 75% = | J38: 8378 | K38: @ 100% = | M38: 11490 | N38: @ 125% = | P38: 13963
B39: @ Add'l: | D39: =M39*0.25 -> 1005 | E39: @ Add'l: | G39: =M39*0.5 -> 2010 | H39: @ Add'l: | J39: =M39*0.75 -> 3015 | K39: @ Add'l: | M39: 4020 | N39: @ Add'l: | P39: =M39*1.25 -> 5025
A40: PG = | B40: HHS Poverty Guidelines
A42: To view the 2013 Department of Health and Human Services Poverty Income Guideline, go to: | M42: http://aspe.hhs.gov/poverty/13poverty.cfm

Sheet FPIG 125% (hidden)
A1: FACTOR NO. 1 - HIP ELIGIBILITY/SELECTION CRITERIA @ 125%
A2: INCOME GUIDELINE POINT SCHEDULE FOR ALL STATES EXCEPT ALASKA
A3: FAMILY SIZE | B3: 0% to 25% of PG 40 POINTS | E3: 26% to 50% of PG 30 POINTS | H3: 51% to 75% of PG 20 POINTS | K3: 76% to 100% of PG 10 POINTS | N3: 101% to 125% of PG 0 POINTS | Q3: OVER 125% of FPIG INELIGIBLE
A5: 1 | B5: 0 | C5: TO | D5: =D18 -> 2872.5 | E5: =D5+1 -> 2873.5 | F5: TO | G5: =G18 -> 5745 | H5: =G5+1 -> 5746 | I5: TO | J5: =J18 -> 8617.5 | K5: =J5+1 -> 8618.5 | L5: TO | M5: =M18 -> 11490 | N5: =M5+1 -> 11491 | O5: TO | P5: =P18 -> 14362.5 | Q5: =P5+1 -> 14363.5 | R5: & HIGHER
A6: 2 | B6: 0 | C6: TO | D6: =D5+B$17 -> 3877.5 | E6: 3878.5 | F6: TO | G6: =G5+E$17 -> 7755 | H6: 7756 | I6: TO | J6: =J5+H$17 -> 11632.5 | K6: 11633.5 | L6: TO | M6: =M5+K$17 -> 15510 | N6: 15511 | O6: TO | P6: =P5+N$17 -> 19387.5 | Q6: 19388.5 | R6: & HIGHER
A7: 3 | B7: 0 | C7: TO | D7: 4882.5 | E7: 4883.5 | F7: TO | G7: 9765 | H7: 9766 | I7: TO | J7: 14647.5 | K7: 14648.5 | L7: TO | M7: 19530 | N7: 19531 | O7: TO | P7: 24412.5 | Q7: 24413.5 | R7: & HIGHER
A8: 4 | B8: 0 | C8: TO | D8: 5887.5 | E8: 5888.5 | F8: TO | G8: 11775 | H8: 11776 | I8: TO | J8: 17662.5 | K8: 17663.5 | L8: TO | M8: 23550 | N8: 23551 | O8: TO | P8: 29437.5 | Q8: 29438.5 | R8: & HIGHER
A9: 5 | B9: 0 | C9: TO | D9: 6892.5 | E9: 6893.5 | F9: TO | G9: 13785 | H9: 13786 | I9: TO | J9: 20677.5 | K9: 20678.5 | L9: TO | M9: 27570 | N9: 27571 | O9: TO | P9: 34462.5 | Q9: 34463.5 | R9: & HIGHER
A10: 6 | B10: 0 | C10: TO | D10: 7897.5 | E10: 7898.5 | F10: TO | G10: 15795 | H10: 15796 | I10: TO | J10: 23692.5 | K10: 23693.5 | L10: TO | M10: 31590 | N10: 31591 | O10: TO | P10: 39487.5 | Q10: 39488.5 | R10: & HIGHER
A11: 7 | B11: 0 | C11: TO | D11: 8902.5 | E11: 8903.5 | F11: TO | G11: 17805 | H11: 17806 | I11: TO | J11: 26707.5 | K11: 26708.5 | L11: TO | M11: 35610 | N11: 35611 | O11: TO | P11: 44512.5 | Q11: 44513.5 | R11: & HIGHER
A12: 8 | B12: 0 | C12: TO | D12: 9907.5 | E12: 9908.5 | F12: TO | G12: 19815 | H12: 19816 | I12: TO | J12: 29722.5 | K12: 29723.5 | L12: TO | M12: 39630 | N12: 39631 | O12: TO | P12: 49537.5 | Q12: 49538.5 | R12: & HIGHER
A13: 9 | B13: 0 | C13: TO | D13: 10912.5 | E13: 10913.5 | F13: TO | G13: 21825 | H13: 21826 | I13: TO | J13: 32737.5 | K13: 32738.5 | L13: TO | M13: 43650 | N13: 43651 | O13: TO | P13: 54562.5 | Q13: 54563.5 | R13: & HIGHER
A14: 10 | B14: 0 | C14: TO | D14: 11917.5 | E14: 11918.5 | F14: TO | G14: 23835 | H14: 23836 | I14: TO | J14: 35752.5 | K14: 35753.5 | L14: TO | M14: 47670 | N14: 47671 | O14: TO | P14: 59587.5 | Q14: 59588.5 | R14: & HIGHER
A15: 11 | B15: 0 | C15: TO | D15: 12922.5 | E15: 12923.5 | F15: TO | G15: 25845 | H15: 25846 | I15: TO | J15: 38767.5 | K15: 38768.5 | L15: TO | M15: 51690 | N15: 51691 | O15: TO | P15: 64612.5 | Q15: 64613.5 | R15: & HIGHER
A16: 12 | B16: 0 | C16: TO | D16: 13927.5 | E16: 13928.5 | F16: TO | G16: 27855 | H16: 27856 | I16: TO | J16: 41782.5 | K16: 41783.5 | L16: TO | M16: 55710 | N16: 55711 | O16: TO | P16: 69637.5 | Q16: 69638.5 | R16: & HIGHER
A17: EACH PERSON OVER 12 ADD | B17: =D19 -> 1005 | E17: =G19 -> 2010 | H17: =J19 -> 3015 | K17: =$M$19 -> 4020 | N17: =P19 -> 5025 | Q17: =N17+1 -> 5026 | R17: & HIGHER
A18: 2012 PG: | B18: 25%= | D18: =$M$18*0.25 -> 2872.5 | E18: 50%= | G18: =$M$18*0.5 -> 5745 | H18: 75%= | J18: =$M$18*0.75 -> 8617.5 | K18: 100%= | M18: 11490 | N18: 125% = | P18: =M18*1.25 -> 14362.5
B19: @ Add'l: | D19: =M19*0.25 -> 1005 | E19: @ Add'l: | G19: =M19*0.5 -> 2010 | H19: @ Add'l: | J19: =M19*0.75 -> 3015 | K19: @ Add'l: | M19: 4020 | N19: @ Add'l: | P19: =M19*1.25 -> 5025
A20: PG = | B20: HHS Poverty Guidelines
A21: FACTOR NO. 1 - HIP ELIGIBILITY/SELECTION CRITERIA @ 125%
A22: INCOME GUIDELINE POINT SCHEDULE FOR ALASKA
A23: FAMILY SIZE | B23: 0% to 25% of FPIG 40 POINTS | E23: 26% to 50% of FPIG 30 POINTS | H23: 51% to 75% of FPIG 20 POINTS | K23: 76% to 100% of FPIG 10 POINTS | N23: 101% to 125% of FPIG 0 POINTS | Q23: OVER 125% of FPIG INELIGIBLE
A25: 1 | B25: 0 | C25: TO | D25: =D38 -> 3587.5 | E25: =D25+1 -> 3588.5 | F25: TO | G25: =G38 -> 7175 | H25: =G25+1 -> 7176 | I25: TO | J25: =J38 -> 10762.5 | K25: =J25+1 -> 10763.5 | L25: TO | M25: =M38 -> 14350 | N25: =M25+1 -> 14351 | O25: TO | P25: =P38 -> 17937.5 | Q25: =P25+1 -> 17938.5 | R25: & HIGHER
A26: 2 | B26: 0 | C26: TO | D26: =D25+D$37 -> 4845 | E26: 4846 | F26: TO | G26: =G25+G$37 -> 9690 | H26: 9691 | I26: TO | J26: =J25+J$37 -> 14535 | K26: 14536 | L26: TO | M26: =M25+M$37 -> 19380 | N26: 19381 | O26: TO | P26: =P25+P$37 -> 24225 | Q26: 24226 | R26: & HIGHER
A27: 3 | B27: 0 | C27: TO | D27: 6102.5 | E27: 6103.5 | F27: TO | G27: 12205 | H27: 12206 | I27: TO | J27: 18307.5 | K27: 18308.5 | L27: TO | M27: 24410 | N27: 24411 | O27: TO | P27: 30512.5 | Q27: 30513.5 | R27: & HIGHER
A28: 4 | B28: 0 | C28: TO | D28: 7360 | E28: 7361 | F28: TO | G28: 14720 | H28: 14721 | I28: TO | J28: 22080 | K28: 22081 | L28: TO | M28: 29440 | N28: 29441 | O28: TO | P28: 36800 | Q28: 36801 | R28: & HIGHER
A29: 5 | B29: 0 | C29: TO | D29: 8617.5 | E29: 8618.5 | F29: TO | G29: 17235 | H29: 17236 | I29: TO | J29: 25852.5 | K29: 25853.5 | L29: TO | M29: 34470 | N29: 34471 | O29: TO | P29: 43087.5 | Q29: 43088.5 | R29: & HIGHER
A30: 6 | B30: 0 | C30: TO | D30: 9875 | E30: 9876 | F30: TO | G30: 19750 | H30: 19751 | I30: TO | J30: 29625 | K30: 29626 | L30: TO | M30: 39500 | N30: 39501 | O30: TO | P30: 49375 | Q30: 49376 | R30: & HIGHER
A31: 7 | B31: 0 | C31: TO | D31: 11132.5 | E31: 11133.5 | F31: TO | G31: 22265 | H31: 22266 | I31: TO | J31: 33397.5 | K31: 33398.5 | L31: TO | M31: 44530 | N31: 44531 | O31: TO | P31: 55662.5 | Q31: 55663.5 | R31: & HIGHER
A32: 8 | B32: 0 | C32: TO | D32: 12390 | E32: 12391 | F32: TO | G32: 24780 | H32: 24781 | I32: TO | J32: 37170 | K32: 37171 | L32: TO | M32: 49560 | N32: 49561 | O32: TO | P32: 61950 | Q32: 61951 | R32: & HIGHER
A33: 9 | B33: 0 | C33: TO | D33: 13647.5 | E33: 13648.5 | F33: TO | G33: 27295 | H33: 27296 | I33: TO | J33: 40942.5 | K33: 40943.5 | L33: TO | M33: 54590 | N33: 54591 | O33: TO | P33: 68237.5 | Q33: 68238.5 | R33: & HIGHER
A34: 10 | B34: 0 | C34: TO | D34: 14905 | E34: 14906 | F34: TO | G34: 29810 | H34: 29811 | I34: TO | J34: 44715 | K34: 44716 | L34: TO | M34: 59620 | N34: 59621 | O34: TO | P34: 74525 | Q34: 74526 | R34: & HIGHER
A35: 11 | B35: 0 | C35: TO | D35: 16162.5 | E35: 16163.5 | F35: TO | G35: 32325 | H35: 32326 | I35: TO | J35: 48487.5 | K35: 48488.5 | L35: TO | M35: 64650 | N35: 64651 | O35: TO | P35: 80812.5 | Q35: 80813.5 | R35: & HIGHER
A36: 12 | B36: 0 | C36: TO | D36: 17420 | E36: 17421 | F36: TO | G36: 34840 | H36: 34841 | I36: TO | J36: 52260 | K36: 52261 | L36: TO | M36: 69680 | N36: 69681 | O36: TO | P36: 87100 | Q36: 87101 | R36: & HIGHER
A37: EACH PERSON OVER 12 ADD | D37: =D39 -> 1257.5 | G37: =G39 -> 2515 | J37: =J39 -> 3772.5 | M37: =M39 -> 5030 | P37: =P39 -> 6287.5 | Q37: 6288.5 | R37: & HIGHER
A38: 2014 PG: | B38: @ 25% = | D38: =$M$38*0.25 -> 3587.5 | E38: @ 50% = | G38: =$M$38*0.5 -> 7175 | H38: @ 75% = | J38: =$M$38*0.75 -> 10762.5 | K38: @ 100% = | M38: 14350 | N38: @ 125% = | P38: =M38*1.25 -> 17937.5
B39: @ Add'l: | D39: =M39*0.25 -> 1257.5 | E39: @ Add'l: | G39: =M39*0.5 -> 2515 | H39: @ Add'l: | J39: =M39*0.75 -> 3772.5 | K39: @ Add'l: | M39: 5030 | N39: @ Add'l: | P39: =M39*1.25 -> 6287.5
A40: PG = | B40: HHS Poverty Guidelines

Sheet Sheet1 (hidden)
B3: formula shows total if all three cell are populated or than zero, other wise blank or zero
B5: =IF(OR(ISBLANK(B7),ISBLANK(C7),ISBLANK(D7)), "no data", IF(OR(B7=0, C7=0, D7=0),"ZERO", B7+C7+D7)) -> 7
B7: 1 | C7: 2 | D7: 4

Sheet HIP Home
